Cogmind - Beta 15 @@@ ROGUE MODE // 2025.07.17 @ 14:09:34 Player: Infomantis Result: Destroyed by B-99 Colossus with Multirail Performance ------------- Evolutions (9) 4500 Regions Visited (33) 6600 Robots Destroyed (472) 2360 Value Destroyed (29482) 29482 Prototype IDs (82) 1640 Alien Tech Used (0) 0 Bonus (20748) 20748 TOTAL SCORE: 65330 Bonus ------- High Alert Combat Kills 6389 Follower Combat Kills 1576 Entered Garrisons 1200 Used RIF Installer 2000 Entered DSFs 500 Aligned with FarCom 300 Met Imprinter 300 Destroyed Z-Imprinter 1000 Triggered Deep Caves Wall 500 Exposed GOLEM Chamber 500 Acquired ECA 300 Met Warlord at Base 500 MAIN.C Attacked Warlord 500 Warlord Defense Kills 3338 Met Warlord at Research 2000 Friendly Fire -155 Cogmind --------- Core Integrity 0/1600 Matter 214/300 Energy 100/100 System Corruption 0% Temperature Cool (9) Movement Core (50) Location -1/Access Parts ------- > --- POWER (2) -------- (None) > --- PROPULSION (5) --- (None) > --- UTILITY (15) ----- Advanced Visual Processing Unit Graphene Brace Advanced Corruption Screen > --- WEAPON (3) ------- (None) > --- INVENTORY (5) ---- Enhanced Biometal Leg Precision Energy Filter Advanced Particle Charger Authchip [R/Combat] Advanced Datajack Peak State ------------ > --- POWER ------------ Particle Reactor Light Quantum Reactor > --- PROPULSION ------- Biometal Leg Biometal Leg Biometal Leg Assembled Alloy Leg Assembled Alloy Leg > --- UTILITY ---------- Advanced Heat Sink Assembled Nanovents Assembled Nanovents Assembled Nanovents High-capacity Storage Unit Assembled Biocell Array Assembled Suspension Frame Assembled Combat Suite Assembled Alloy Armor Assembled Alloy Armor Graphene Brace Improved Hacking Suite Advanced Corruption Screen GOLEM Unit > --- WEAPON ----------- Assembled Focal Cannon Assembled Focal Cannon Assembled Focal Cannon > --- INVENTORY -------- Improved Quantum Reactor Biometal Leg Biometal Leg Enhanced Biometal Leg Advanced Cooling System Zionite Biocell Zionite Biocell Long-range Sensor Array Precision Energy Filter Advanced Force Field Authchip [R/Combat] Relay Coupler [Behemoth] Relay Coupler [Programmer] Enhanced Quantum Rifle 8R-AWN's Boregun Linear Accelerator Enhanced Gamma Bomb Array Fusion Bomb Launcher Advanced Datajack Advanced Remote Datajack [Rating: 214] Favorites ----------- Power Micro Nuclear Core Engine Light Angular Momentum Engine Power Core Micro Nuclear Core Reactor Improved Quantum Reactor Propulsion Assembled Alloy Leg Treads Light Treads Leg Assembled Alloy Leg Wheel Compact Wheel Hover Unit Zionite Glidesys I Flight Unit Improved Flight Unit Utility High-capacity Storage Unit Device GOLEM Unit Storage High-capacity Storage Unit Processor Core Analyzer Hackware Improved Hacking Suite Protection Assembled Alloy Armor Weapon Assembled Focal Cannon Energy Gun Improved Medium Laser Energy Cannon Assembled Focal Cannon Ballistic Gun XL Autogun Subcomponent Ballistic Cannon Improved Light Cannon Launcher Mini Grenade Launcher Special Weapon Improved Remote Datajack Slashing Weapon Phasing Sabre Special Melee Weapon Datajack Build | -11 -10 -10 -9 -9 -9 -8 -8 -8 -7 -7 -7 -7 -7 -6 -6 -6 -6 -6 -5 -5 -5 -5 -4 -4 -4 -4 -4 -3 -3 -3 -3 -2 -1 ------- Run | Yrd Mat Min Mat Min Exi Min Mat Gar Fac Low Low Zio Dee Pro Fac Gar Fac DSF Fac Upp Upp War Pro Fac Gar Fac Gar Res Gar Res Gar Res Acc Slots Evolved 18 | . . . 2 . . . 2 . 2 . . . . . 2 . . . 2 . . . . 2 . . . 2 . . . 2 2 Power 1 | . . . . . . . . . 1 . . . . . . . . . . . . . . . . . . . . . . . . Propulsion 3 | . . . 1 . . . . . 1 . . . . . . . . . . . . . . 1 . . . . . . . . . Utility 13 | . . . 1 . . . 2 . . . . . . . 2 . . . 1 . . . . 1 . . . 2 . . . 2 2 Weapon 1 | . . . . . . . . . . . . . . . . . . . 1 . . . . . . . . . . . . . . Parts Attached 296 | 8 11 4 22 2 23 . 8 16 21 7 3 4 22 2 1 12 . 9 3 . 3 12 1 2 8 2 12 6 19 10 11 19 13 Power 61 | 1 3 2 4 . 3 . . 1 5 . 1 . 2 . . 2 . 4 . . . 1 . . 6 1 5 3 6 2 2 6 1 Engine 17 | 1 2 . 4 . 2 . . 1 3 . 1 . . . . 1 . 2 . . . . . . . . . . . . . . . Core 11 | . 1 2 . . 1 . . . 2 . . . . . . 1 . 1 . . . . . . 2 1 . . . . . . . Reactor 33 | . . . . . . . . . . . . . 2 . . . . 1 . . . 1 . . 4 . 5 3 6 2 2 6 1 Propulsion 73 | 2 2 1 6 1 6 . 1 2 3 1 2 . 4 1 . 10 . 2 . . . 3 . 1 . . 3 . 8 6 2 4 2 Treads 20 | 2 2 1 4 1 3 . . . . . . . . . . 7 . . . . . . . . . . . . . . . . . Leg 49 | . . . . . 3 . 1 2 3 1 2 . 2 1 . 3 . 2 . . . 3 . 1 . . 3 . 8 6 2 4 2 Wheel 1 | . . . 1 . . . . . . . . . . . . . . . . . . . . . . . . . . . . . . Hover 2 | . . . . . . . . . . . . . 2 . . . . . . . . . . . . . . . . . . . . Flight 1 | . . . 1 . . . . . . . . . . . . . . . . . . . . . . . . . . . . . . Utility 111 | 2 1 1 5 1 9 . 5 10 8 4 . 1 13 1 1 . . 3 3 . 3 6 1 1 1 1 4 3 4 1 5 6 7 Device 48 | 1 . 1 2 . 4 . 1 4 4 1 . 1 7 . 1 . . 2 1 . 2 3 . . 1 . 2 2 . . 1 5 2 Storage 11 | 1 1 . . . 3 . 1 . . . . . 1 . . . . . 1 . . . . . . . 1 . . . 2 . . Processor 9 | . . . . . . . . 1 1 . . . . . . . . 1 1 . . 2 . . . . . . . . . 1 2 Hackware 7 | . . . . . . . . . . . . . . . . . . . . . . . . . . . . 1 2 1 . . 3 Protection 36 | . . . 3 1 2 . 3 5 3 3 . . 5 1 . . . . . . 1 1 1 1 . 1 1 . 2 . 2 . . Artifact . | . . . . . . . . . . . . . . . . . . . . . . . . . . . . . . . . . . Weapon 51 | 3 5 . 7 . 5 . 2 3 5 2 . 3 3 . . . . . . . . 2 . . 1 . . . 1 1 2 3 3 Energy Gun 19 | 2 2 . 4 . 1 . 1 . 2 . . . 2 . . . . . . . . . . . . . . . . . 2 2 1 Energy Cannon 2 | . . . . . . . . . 1 . . . 1 . . . . . . . . . . . . . . . . . . . . Ballistic Gun 15 | 1 2 . 1 . 3 . 1 2 2 1 . 1 . . . . . . . . . 1 . . . . . . . . . . . Ballistic Cannon 3 | . . . . . 1 . . . . . . . . . . . . . . . . 1 . . . . . . . 1 . . . Launcher 7 | . 1 . 2 . . . . 1 . 1 . . . . . . . . . . . . . . . . . . . . . 1 1 Special Weapon 2 | . . . . . . . . . . . . . . . . . . . . . . . . . 1 . . . 1 . . . . Impact Weapon . | . . . . . . . . . . . . . . . . . . . . . . . . . . . . . . . . . . Slashing Weapon 1 | . . . . . . . . . . . . 1 . . . . . . . . . . . . . . . . . . . . . Piercing Weapon . | . . . . . . . . . . . . . . . . . . . . . . . . . . . . . . . . . . Special Melee Weapon 2 | . . . . . . . . . . . . 1 . . . . . . . . . . . . . . . . . . . . 1 Unidentified Prototypes 40 | . . 1 3 . 8 . 1 . 1 . . 1 10 . . . . 4 1 . . 8 . . . . . . . . . 2 . Corrupted Parts 2 | . . . . . . . . . . . . . . 1 . . . . . . . . . . . . . . . . 1 . . System Corruption 12 | . . . . . . . . . . . . . . 10 . . . . . . . . . . . . . . . . 2 . . Parts Lost 101 | . 1 1 7 1 4 . 1 5 1 2 . . 5 7 . . . . . . . . . . 1 1 . 1 3 12 18 1 29 Power 18 | . 1 . 1 . 1 . . 1 1 . . . 1 1 . . . . . . . . . . 1 1 . . . 3 2 1 3 Propulsion 19 | . . 1 3 1 1 . . . . . . . 1 2 . . . . . . . . . . . . . . 1 1 3 . 5 Utility 40 | . . . 2 . 2 . 1 3 . 2 . . 2 . . . . . . . . . . . . . . . 1 2 9 . 16 Weapon 24 | . . . 1 . . . . 1 . . . . 1 4 . . . . . . . . . . . . . 1 1 6 4 . 5 Highest Loss Streak 19 | . 1 1 3 1 4 . 1 2 1 2 . . 3 3 . . . . . . . . . . 1 1 . 1 1 7 9 1 19 To Critical Strikes 1 | . . . . . . . . . . . . . . 1 . . . . . . . . . . . . . . . . . . . Average Backups 17 | 3 11 15 14 15 15 20 19 19 19 19 20 19 17 16 16 16 17 16 17 17 17 17 18 16 18 18 18 17 17 17 16 18 19 Power 1 | . 2 2 1 1 1 2 1 1 1 1 2 1 . 1 1 . . . . . . 1 1 1 1 1 1 1 . . . . . Propulsion 1 | . 1 1 1 2 2 2 2 1 . 2 2 1 1 . . 1 2 2 2 2 2 2 3 2 2 2 2 2 2 1 1 1 2 Utility 9 | . 3 5 6 6 3 10 9 10 11 8 8 8 8 11 11 10 11 11 12 13 13 12 12 11 13 12 12 12 11 12 11 10 8 Weapon 4 | 1 4 5 5 6 7 6 6 6 6 7 7 7 5 2 3 3 3 2 2 2 2 2 2 2 2 2 2 2 2 1 1 4 4 Tool/Special . | . . . . . . . . . . . . . . . . . . . . . . . . . . . . . . . . . . Unused Backups 54 | . . . 4 1 8 . 3 4 6 . . 3 2 . 1 . . 3 . 1 . 3 . . 1 1 1 2 . . . 2 8 Power 6 | . . . . . 4 . . . . . . 1 . . . . . . . . . 1 . . . . . . . . . . . Propulsion 8 | . . . 1 . . . 1 2 . . . . 1 . . . . . . . . . . . . . . . . . . . 3 Utility 22 | . . . 1 . 2 . 1 2 2 . . 2 1 . . . . . . 1 . . . . 1 1 1 1 . . . 1 5 Weapon 16 | . . . 2 1 2 . 1 . 3 . . . . . 1 . . 3 . . . 2 . . . . . . . . . 1 . Tool/Special 2 | . . . . . . . . . 1 . . . . . . . . . . . . . . . . . . 1 . . . . . Average Slot Usage (%) 93 | . 97 99 95 100 90 100 99 98 98 95 100 98 91 78 77 90 93 92 92 94 93 93 93 93 93 93 93 93 94 93 83 91 92 Engine 4 | . 11 11 9 11 9 11 1 . 11 7 7 7 6 . . 4 6 5 . . . . . . . . . . . . . . . Core 2 | . . 2 1 . . . 7 8 3 7 6 7 1 . . 4 6 4 5 5 5 5 5 5 5 6 1 . . . . . . Reactor 3 | . . . . . . . . . . . . . 3 7 6 1 . 1 5 5 5 5 5 5 5 3 8 9 9 8 6 7 7 Treads 4 | . 28 27 21 22 18 . . . . . . . . . . 10 13 9 . . . . . . . . . . . . . . . Leg 20 | . . . . . 5 33 27 27 29 30 30 30 29 25 17 15 13 16 23 23 23 23 23 26 26 26 26 23 22 23 20 20 19 Wheel 1 | . . . 11 11 6 . . . . . . . . . . . . . . . . . . . . . . . . . . . . Device 14 | . 14 13 9 11 5 11 14 8 7 3 7 7 9 11 12 19 20 19 17 17 16 16 14 16 14 15 14 24 24 31 29 31 26 Storage 10 | . 14 14 11 11 11 11 12 9 7 7 7 7 7 15 13 13 13 13 11 11 11 11 11 10 10 10 10 9 9 9 11 8 7 Processor 3 | . . . . . . . . 8 7 7 7 7 6 . . . . . 3 5 5 5 5 5 5 5 5 . . . . 2 9 Protection 8 | . . . 9 11 11 11 18 17 15 14 15 14 8 2 12 6 6 6 5 5 5 5 7 8 10 10 9 8 7 3 3 6 5 Energy Gun 3 | . 13 14 17 21 10 . . 4 5 6 7 6 1 . . . . . . . . . . . . . . . . . 2 1 . Energy Cannon 7 | . . . . . . . . . . . . . 2 14 13 12 13 13 16 17 16 16 16 15 14 10 15 14 13 12 8 10 10 Ballistic Gun 5 | . 13 14 4 . 9 22 17 12 8 7 7 5 9 . . . . . . . . . . . . . . . . . . . . Peak Build Rating 214 | 7 10 14 20 20 51 51 61 67 66 73 74 74 114 111 125 128 116 129 152 149 149 153 154 165 165 158 162 178 177 176 185 201 214 Average Rating 98 | 5 7 8 14 19 27 51 57 59 62 65 70 68 76 105 120 113 116 117 146 148 148 147 146 159 158 154 157 169 169 169 152 187 197 On Entrance 100 | . 7 8 11 20 19 51 51 58 49 64 73 70 68 111 96 123 116 116 128 148 149 148 148 148 160 156 158 156 169 168 159 112 191 Naked Turns . | . . . . . . . . . . . . . . . . . . . . . . . . . . . . . . . . . . Heaviest Build 146 | 11 30 30 39 39 59 56 66 65 76 80 83 85 118 119 121 122 109 110 124 120 126 120 126 127 135 123 133 141 141 137 146 139 143 Greatest Support 166 | 40 40 40 40 20 80 80 80 78 96 96 96 81 114 114 90 105 60 120 120 120 120 120 120 150 150 150 150 160 146 138 143 166 166 Greatest Overweight (x) 3 | . . 1 2 2 2 . . . 1 . 1 1 1 1 2 3 1 1 1 . 1 1 1 . . . . 1 1 1 1 1 1 Average Overweight (x) . | . . . . 1 1 . . . . . . . . . 1 1 1 . . . . . . . . . . . . . . . . Largest Inventory Capacity 20 | 8 15 15 15 15 20 20 20 20 20 20 20 20 20 20 20 20 20 20 20 20 20 20 20 20 20 20 20 20 20 20 20 20 20 Average Capacity 18 | 7 12 15 15 15 15 20 20 20 20 20 20 20 19 20 20 20 20 20 20 20 20 20 20 20 20 20 20 20 20 20 20 20 19 Most Carried 20 | 6 15 15 15 15 20 20 20 20 20 20 20 20 20 20 20 20 20 20 20 20 20 20 20 20 20 20 20 20 20 20 20 20 20 Average Carried 18 | 4 11 14 14 14 15 20 19 19 19 19 20 19 18 19 19 19 20 19 19 20 19 19 20 19 19 19 19 19 19 19 18 19 19 Final Capacity 20 | 8 15 15 15 15 20 20 20 20 20 20 20 20 20 20 20 20 20 20 20 20 20 20 20 20 20 20 20 20 20 20 20 20 5 Final Carried 20 | 6 15 15 15 15 20 20 20 20 20 20 20 20 20 20 20 20 20 20 20 20 20 20 20 20 20 20 20 20 20 18 18 20 5 Class Distribution -------------------- 37% | Scavenger-Golem 33% | Scavenger-Mutant 15% | Mutant 9% | Golem Dominant Class ---------------- Scavenger-Mutant | -10/Materials Scavenger-Mutant | -10/Mines Scavenger-Mutant | -9/Materials Scavenger-Mutant | -9/Mines Mutant | -9/Exiles Mutant | -8/Mines Mutant | -8/Materials Scavenger-Mutant | -8/Garrison Scavenger-Mutant | -7/Factory Scavenger-Mutant | -7/Lower Caves Scavenger-Mutant | -7/Lower Caves Scavenger-Mutant | -7/Zion Scavenger-Mutant | -7/Deep Caves Golem | -6/Proximity Caves Golem | -6/Factory Scavenger-Golem | -6/Garrison Golem | -6/Factory Golem | -6/DSF Scavenger-Golem | -5/Factory Scavenger-Golem | -5/Upper Caves Scavenger-Golem | -5/Upper Caves Scavenger-Golem | -5/Warlord Scavenger-Golem | -4/Proximity Caves Scavenger-Golem | -4/Factory Scavenger-Golem | -4/Garrison Scavenger-Golem | -4/Factory Scavenger-Golem | -4/Garrison Bothacker-Golem | -3/Research Scavenger-Golem | -3/Garrison Scavenger-Golem | -3/Research Scavenger-Golem | -3/Garrison Scavenger-Golem | -2/Research Scavenger-Golem | -1/Access Resources | -11 -10 -10 -9 -9 -9 -8 -8 -8 -7 -7 -7 -7 -7 -6 -6 -6 -6 -6 -5 -5 -5 -5 -4 -4 -4 -4 -4 -3 -3 -3 -3 -2 -1 ----------- Run | Yrd Mat Min Mat Min Exi Min Mat Gar Fac Low Low Zio Dee Pro Fac Gar Fac DSF Fac Upp Upp War Pro Fac Gar Fac Gar Res Gar Res Gar Res Acc Matter Collected 8334 | 299 277 246 406 71 840 76 630 733 518 190 116 150 798 282 . 254 . 120 32 18 50 180 71 30 135 46 307 87 482 272 212 260 146 Remotely . | . . . . . . . . . . . . . . . . . . . . . . . . . . . . . . . . . . Salvage Created 25014 | 190 615 263 998 12 595 57 681 1305 833 509 348 . 1712 902 . 1051 . 195 60 . 302 1601 987 403 2080 383 1494 751 2554 1049 617 649 1818 Parts 1251 | 19 40 13 63 3 65 6 42 77 47 31 13 . 42 35 . 48 . 4 9 . 25 74 49 19 101 26 71 43 115 51 30 13 77 Haulers Intercepted 4 | . 1 . 2 . . . . . . . . . . . . . . . . . . . . . . . . . . . . 1 . Recyclers Shooed 6 | . 1 1 1 . . . 1 . 1 . . . . . . . . . . . . . . . . 1 . . . . . . . Parts Field Recycled . | . . . . . . . . . . . . . . . . . . . . . . . . . . . . . . . . . . Retrieved Matter . | . . . . . . . . . . . . . . . . . . . . . . . . . . . . . . . . . . Parts Self-Destructed 141 | . . . . . . . . . . 17 17 . . 33 . . . . . . 22 . 52 . . . . . . . . . . Prevented 13 | . . . . . . . . . . 13 . . . . . . . . . . . . . . . . . . . . . . . Kills | -11 -10 -10 -9 -9 -9 -8 -8 -8 -7 -7 -7 -7 -7 -6 -6 -6 -6 -6 -5 -5 -5 -5 -4 -4 -4 -4 -4 -3 -3 -3 -3 -2 -1 ------- Run | Yrd Mat Min Mat Min Exi Min Mat Gar Fac Low Low Zio Dee Pro Fac Gar Fac DSF Fac Upp Upp War Pro Fac Gar Fac Gar Res Gar Res Gar Res Acc Combat Hostiles Destroyed 427 | . 14 4 22 4 4 4 14 31 19 13 4 . 15 18 . 22 . 3 4 . 4 26 17 7 38 9 23 14 36 15 9 6 28 Melee 3 | . . . . . . . . . . . . . . . . 2 . . . . . . . . 1 . . . . . . . . Guns 101 | . 8 4 14 1 4 4 10 22 17 3 4 . 4 3 . . . . . . . . . . . . . . . 2 1 . . Cannons 249 | . . . . . . . . . . . . . . 11 . 19 . 3 1 . 4 24 17 7 37 9 23 14 36 13 8 6 17 AOE 57 | . 6 . 7 3 . . 4 9 2 10 . . 1 4 . . . . 3 . . . . . . . . . . . . . 8 Classes Destroyed 32 | 3 5 . 1 . 3 . 2 3 . . . . 3 4 . 1 . . . . 1 3 . . . . 1 1 . . 1 . . Worker 7 | 2 . 1 1 . . . 1 . 1 . . . . . . . . . . . . . . . . . . . . . . . 1 Builder 7 | . 3 . 1 . . . 1 . . . . . . . . . . . . . . . . . . . . . . . . . 2 Tunneler 4 | 4 . . . . . . . . . . . . . . . . . . . . . . . . . . . . . . . . . Hauler 4 | . 1 . 2 . . . . . . . . . . . . . . . . . . . . . . . . . . . . 1 . Recycler 7 | 1 3 1 1 . . . . . . . . . . . . . . . . . . . . . . . . . . . . 1 . Minesweeper 1 | . . . . . . . . . . . . . . . . . . . . . 1 . . . . . . . . . . . . Mechanic 2 | . . . . . . . . . . . . . . . . . . . . . . 1 . . . . . . . . . . 1 Operator 5 | . 1 . 1 . . . 2 . . . . . . . . . . . . . . . . . . . . 1 . . . . . Drone 2 | . . . . . . . . . . . . . . 2 . . . . . . . . . . . . . . . . . . . Turret 1 | . . . . . 1 . . . . . . . . . . . . . . . . . . . . . . . . . . . . Watcher 5 | . . . . . . . 2 . . . . . . . . . . . . . . . . . . . . . 1 2 . . . Swarmer 103 | . 3 . 7 4 . 4 3 6 3 7 . . . 2 . 3 . . 4 . . 2 3 3 15 6 3 7 6 2 1 . 9 Cutter 2 | . . . . . . . . . . . . . . . . . . . . . . . . . . . . . . . 2 . . Saboteur 3 | . . . . . . . . . . . . . . . . 3 . . . . . . . . . . . . . . . . . Grunt 140 | . 11 4 7 . . . 4 14 7 3 4 . . 7 . 7 . 3 . . 2 9 1 3 16 2 8 4 14 4 . 2 4 Brawler 6 | . . . . . . . . . . . . . . 1 . . . . . . . 4 . 1 . . . . . . . . . Duelist 10 | . . . . . . . . 2 . 2 . . . 1 . . . . . . . 2 . . . . 2 . . 1 . . . Protector 5 | . . . . . . . . . . . . . . 1 . . . . . . . 2 1 . . . 1 . . . . . . Sentry 45 | . . . 8 . . . 5 4 6 1 . . . 2 . 3 . . . . 1 . 1 . 3 1 1 . 4 1 2 . 2 Demolisher 1 | . . . . . . . . . . . . . . . . . . . . . . . . . . . 1 . . . . . . Specialist 11 | . . . . . . . . 2 . . . . . . . 2 . . . . . . 3 . . . . . 2 . . . 2 Hunter 35 | . . . . . . . 2 . . . . . . 1 . 2 . . . . . 2 4 . . . 2 . 7 2 . 2 11 Programmer 30 | . . . . . . . . 3 3 . . . . . . 1 . . . . . 2 3 . 3 . 4 2 2 4 3 . . Heavy 1 | . . . . . . . . . . . . . . . . . . . . . . . . . . . . 1 . . . . . Behemoth 8 | . . . . . . . . . . . . . . 1 . 1 . . . . 1 . 1 . 1 . 1 . 1 1 . . . Striker 4 | . . . . . . . . . . . . . . . . . . . . . . 2 . . . . . . . . . 2 . Executioner 1 | . . . . . . . . . . . . . . . . . . . . . . 1 . . . . . . . . . . . Zionite 8 | . . . . . 8 . . . . . . . . . . . . . . . . . . . . . . . . . . . . Z-Light 5 | . . . . . . . . . . . . . 5 . . . . . . . . . . . . . . . . . . . . Assembler 2 | . . . . . . . . . . . . . 2 . . . . . . . . . . . . . . . . . . . . Assembled 3 | . . . . . 3 . . . . . . . . . . . . . . . . . . . . . . . . . . . . Golem 10 | . . . . . . . . . . . . . 10 . . . . . . . . . . . . . . . . . . . . Thug 1 | . . . . . . . . . . . . . . . . . . . . . . . . . . . . . . . 1 . . Savage 1 | . . . . . . . . . . . . . . . . . . . . . . . . . . . . . . . 1 . . Best Kill Streak 15 | 3 8 3 4 4 6 3 6 8 4 9 2 . 8 6 . 3 . 3 4 . 2 6 6 7 7 3 4 4 7 4 3 4 15 Combat Bots Only 13 | . 3 2 4 4 3 3 5 8 4 9 2 . 6 6 . 3 . 3 4 . 2 6 6 7 7 3 4 4 7 4 3 4 13 Max Kills in Single Turn 5 | 1 3 1 2 2 1 1 3 3 2 5 1 . 1 1 . 1 . 1 3 . 1 2 2 2 1 1 1 1 2 1 1 1 4 Gunslinging 1 | . . . . . . . . 1 1 . . . . . . . . . . . . . . . . . . . . . . . . Exploded 4 | . 1 . 2 2 . . 3 3 1 4 . . 1 1 . . . . 3 . . . . . . . . . . . . . 4 Melee 1 | . . . . . . . . . . . . . . . . 1 . . . . . . . . 1 . . . . . . . . Uniques/NPCs Destroyed 4 | . . . . . 4 . . . . . . . . . . . . . . . . . . . . . . . . . . . . 8R-AWN (-9/Exiles) EX-BIN (-9/Exiles) EX-HEX (-9/Exiles) EX-DEC (-9/Exiles) Combat | -11 -10 -10 -9 -9 -9 -8 -8 -8 -7 -7 -7 -7 -7 -6 -6 -6 -6 -6 -5 -5 -5 -5 -4 -4 -4 -4 -4 -3 -3 -3 -3 -2 -1 -------- Run | Yrd Mat Min Mat Min Exi Min Mat Gar Fac Low Low Zio Dee Pro Fac Gar Fac DSF Fac Upp Upp War Pro Fac Gar Fac Gar Res Gar Res Gar Res Acc Hostile Shots Fired 3005 | . 75 27 126 21 32 7 53 103 193 31 11 . 82 207 . 144 . 18 7 9 15 44 107 23 160 53 72 72 286 191 254 44 538 Missed 1097 | . 21 7 30 3 9 1 11 34 82 8 2 . 29 76 . 49 . 6 1 3 7 17 35 6 52 18 26 22 117 73 109 13 230 Hits 1908 | . 54 20 96 18 23 6 42 69 111 23 9 . 53 131 . 95 . 12 6 6 8 27 72 17 108 35 46 50 169 118 145 31 308 Melee 36 | . . . . . . . . 9 . . . . . 2 . 5 . . . . . . . . . . . . . 1 12 7 . Projectile 1872 | . 54 20 96 18 23 6 42 60 111 23 9 . 53 129 . 90 . 12 6 6 8 27 72 17 108 35 46 50 169 117 133 24 308 AOE 17 | . . . . 4 . . . . . . . . . . . . . . . . . 3 . . . 2 4 1 1 . 2 . . Critical Strikes 88 | . . . 4 . 9 . 1 3 1 1 . . . 8 . 4 . . . . . 3 4 3 5 1 3 3 6 10 11 2 6 Actively Blocked 38 | . . . . . . . . . . . . . . . . . . . . . . . . . . . . 3 6 10 11 2 6 Part Disruptions 7 | . . . . . . . . . 1 . . . . . . . . . . . . . 3 . . . . . . 1 2 . . Damage Taken 33731 | . 636 272 1262 331 784 48 612 1246 1195 466 160 . 1834 2429 . 1155 . 221 203 55 184 355 687 234 1597 746 874 954 2718 2443 2920 790 6320 Core 4048 | . 121 64 247 9 77 10 63 131 160 . . . 247 146 . 109 . . . . 50 21 22 21 116 81 36 19 164 126 263 140 1605 Absorbed by Shields 763 | . . . . . . . . . . . . . . . . . . . . . . 326 394 . . . 28 . . . 15 . . Redirected to Shielding 19 | . . . . . . . . . . . . . 19 . . . . . . . . . . . . . . . . . . . . Ignored by Resistances 3762 | . . . . . . . . . . . . . . . . 240 . 43 40 11 37 137 227 51 339 150 169 198 565 279 532 156 588 Regen/Repaired (Parts) 564 | . 63 . . . . . 25 . 146 . . . . . . . . . . . . . . . . . . . . 157 . 173 . Core Remaining (%) 62 | 100 . 26 . . . 14 . 64 . . . . . 21 . . . 87 . . . . 90 . . . 77 . . . 56 90 . Volleys Fired 1355 | 19 65 23 77 8 99 6 70 107 49 9 14 1 89 78 . 75 . 15 3 . 14 45 31 13 76 21 55 24 106 41 30 23 69 Largest 3 | 2 2 2 2 2 2 2 2 2 2 2 2 1 2 2 . 2 . 2 1 . 3 3 3 3 3 2 3 3 3 3 3 3 3 Hottest 194 | 60 60 70 112 112 112 40 50 85 108 108 113 33 113 50 . 50 . 50 25 . 75 75 75 75 75 50 75 75 75 104 194 90 75 Shots Fired 2527 | 38 113 46 145 14 181 12 121 175 93 16 28 1 122 111 . 113 . 30 3 . 38 117 74 23 158 30 125 50 216 100 57 46 131 Gun 1023 | 38 97 46 141 12 165 12 119 166 90 11 28 1 59 24 . . . . . . . . . . . . . . . 7 2 5 . Cannon 1414 | . . . . . . . . . . . . . 57 80 . 113 . 30 3 . 38 117 74 23 158 28 125 50 212 93 55 36 122 Launcher 79 | . 16 . 4 2 16 . 2 9 3 5 . . 6 7 . . . . . . . . . . . . . . . . . . 9 Special 11 | . . . . . . . . . . . . . . . . . . . . . . . . . . 2 . . 4 . . 5 . Kinetic 670 | 19 49 23 57 . 97 12 119 117 55 8 14 1 56 24 . . . . . . . . . . . . . . . 15 4 . . Thermal 1704 | 19 48 23 68 12 68 . . 49 35 3 14 . 14 80 . 113 . 30 3 . 38 117 74 23 158 28 125 50 212 85 52 41 122 Explosive 72 | . 16 . 4 2 16 . 2 9 3 2 . . 4 7 . . . . . . . . . . . . . . . . . . 7 Electromagnetic 70 | . . . 16 . . . . . . 3 . . 48 . . . . . . . . . . . . . . . . . 1 . 2 Robot Hit Streak 40 | 7 14 8 14 9 14 2 12 15 11 12 7 . 16 23 . 16 . 18 1 . 7 25 31 17 33 10 40 15 35 22 22 14 20 Robot Miss Streak 10 | 2 2 2 3 7 4 1 3 2 3 10 4 . 4 4 . 2 . 1 1 . 3 1 1 2 1 1 1 1 1 1 3 2 3 Penetration Max 1 | . . . . . . . . . . . 1 . 1 1 . . . . . . . . . . . . . . . 1 . . . Secondary Targets 9 | . 2 . . . 1 . . 2 2 . 2 . . . . . . . . . . . . . . . . . . . . . . Max Gunslinging Chain 1 | . 1 . . . 1 . . 1 1 . 1 . . . . . . . . . . . . . . . . . . . . . . Shots Hit Robots 1704 | 23 77 33 101 3 112 6 66 96 74 10 22 1 83 85 . 71 . 18 1 . 12 87 59 15 110 23 80 38 156 83 43 30 86 Core Hits 963 | 11 44 14 47 4 39 4 35 57 61 26 17 . 107 37 . 24 . 3 4 . 8 51 25 11 59 13 42 23 66 38 16 15 62 Critical Kills 4 | . . . . . . . . . . . 1 . . 3 . . . . . . . . . . . . . . . . . . . Critical Parts Destroyed 8 | . . . . . . . . . . . . . . 8 . . . . . . . . . . . . . . . . . . . Critical Strikes 30 | . . 2 7 . 6 . . 3 . . 1 . . 11 . . . . . . . . . . . . . . . . . . . Burn 18 | . . 2 7 . 6 . . 3 . . . . . . . . . . . . . . . . . . . . . . . . . Destroy 12 | . . . . . . . . . . . 1 . . 11 . . . . . . . . . . . . . . . . . . . Melee Attacks 6 | . . . . . . . . . . . . 1 . . . . . . . . . . . . . . . . . . . . 5 Impact . | . . . . . . . . . . . . . . . . . . . . . . . . . . . . . . . . . . Slashing . | . . . . . . . . . . . . . . . . . . . . . . . . . . . . . . . . . . Piercing . | . . . . . . . . . . . . . . . . . . . . . . . . . . . . . . . . . . Sneak Attacks 1 | . . . . . . . . . . . . 1 . . . . . . . . . . . . . . . . . . . . . Combat Hostiles . | . . . . . . . . . . . . . . . . . . . . . . . . . . . . . . . . . . Follow-up Attacks . | . . . . . . . . . . . . . . . . . . . . . . . . . . . . . . . . . . Damage Inflicted 66776 | 229 1480 404 1686 437 2204 118 1761 2832 1933 804 529 . 3757 3505 . 3452 . 851 243 . 615 4259 2910 680 5045 899 3725 1905 6811 4018 2220 1102 6362 Guns 12184 | 229 736 386 1346 68 2138 118 1353 1929 1579 149 529 . 897 365 . . . . . . . . . . . . . . . 229 24 109 . Cannons 45572 | . . . . . . . . . . . . . 1188 2599 . 3452 . 851 51 . 615 4259 2910 680 5026 889 3725 1854 6811 3765 2162 932 3803 Explosions 8542 | . 717 . 317 369 66 . 365 882 246 655 . . 1672 541 . . . . 192 . . . . . . . . . . . . . 2520 Melee . | . . . . . . . . . . . . . . . . . . . . . . . . . . . . . . . . . . Ramming 478 | . 27 18 23 . . . 43 21 108 . . . . . . . . . . . . . . . 19 10 . 51 . 24 34 61 39 Kinetic 8202 | 87 328 174 521 . 1257 118 1353 1273 786 107 257 . 819 365 . . . . . . . . . . . . . . . 556 201 . . Thermal 48580 | 142 408 212 708 68 881 . . 656 793 42 272 . 241 2599 . 3452 . 851 243 . 615 4259 2910 680 5026 889 3725 1854 6811 3438 1961 1041 3803 Explosive 7137 | . 717 . 317 369 66 . 365 882 246 176 . . 1539 541 . . . . . . . . . . . . . . . . . . 1919 Electromagnetic 2379 | . . . 117 . . . . . . 479 . . 1158 . . . . . . . . . . . . . . . . . 24 . 601 Impact . | . . . . . . . . . . . . . . . . . . . . . . . . . . . . . . . . . . Slashing . | . . . . . . . . . . . . . . . . . . . . . . . . . . . . . . . . . . Piercing . | . . . . . . . . . . . . . . . . . . . . . . . . . . . . . . . . . . Highest Corruption 17 | . . . . . . . . 6 2 1 1 1 1 11 . . . . . . . . 3 . 1 1 3 1 3 11 17 . . Average Corruption 2 | . . . . . . . . 5 1 1 1 1 1 1 . . . . . . . . 2 . 1 1 2 1 2 6 12 . . Corruption Purged 3 | . . . . . . . . . 2 . . . . . . . . . . . . . . . 1 . . . . . . . . Corruption Blocked 7 | . . . . . . . . . . . . . . . . . . . . . . . . . . . . . . . . . 7 Effects 207 | . . . . . . . . 20 2 6 8 1 8 15 . . . . . . . . 13 . 8 2 21 . 40 31 32 . . Message Errors 45 | . . . . . . . . 4 1 2 2 . 2 2 . . . . . . . . 1 . 3 1 4 . 10 7 6 . . Matter Fused 47 | . . . . . . . . 7 . 1 1 1 3 3 . . . . . . . . 5 . 1 1 2 . 9 8 5 . . Heat Flow Errors 22 | . . . . . . . . 1 . 1 1 . . 1 . . . . . . . . 2 . 1 . 1 . 4 3 7 . . Energy Discharges 24 | . . . . . . . . 1 . . . . 1 5 . . . . . . . . . . 1 . 7 . 6 1 2 . . Parts Rejected 4 | . . . . . . . . . . . . . . . . . . . . . . . . . . . . . 1 2 1 . . Parts Fused 3 | . . . . . . . . . . 1 1 . . . . . . . . . . . . . . . . . 1 . . . . Data Loss (minor) 30 | . . . . . . . . 4 . . 3 . 1 2 . . . . . . . . 2 . 1 . 2 . 7 3 5 . . Data Loss (major) 10 | . . . . . . . . . . . . . 1 1 . . . . . . . . 1 . . . 2 . . 3 2 . . Misfires 5 | . . . . . . . . . 1 . . . . . . . . . . . . . . . . . 2 . 1 1 . . . Alerts 5 | . . . . . . . . 2 . . . . . . . . . . . . . . 1 . . . . . . . 2 . . Misdirections 2 | . . . . . . . . . . . . . . . . . . . . . . . . . . . . . . 1 1 . . Weapon Failures 10 | . . . . . . . . 1 . 1 . . . 1 . . . . . . . . 1 . 1 . 1 . 1 2 1 . . Overload Shots 4 | . . . . . . . . . . . . . 4 . . . . . . . . . . . . . . . . . . . . Overflow Damage 1390 | . 19 . . 5 . . 75 1 2 3 . . 52 150 . 53 . 32 . . 16 21 104 2 40 17 185 45 83 65 113 9 298 Projectiles 990 | . . . . . . . . . . . . . 14 126 . 53 . 32 . . 16 21 104 2 40 17 185 45 83 65 113 . 74 Explosions 389 | . 19 . . 5 . . 75 1 . 3 . . 38 24 . . . . . . . . . . . . . . . . . . 224 Melee 11 | . . . . . . . . . 2 . . . . . . . . . . . . . . . . . . . . . . 9 . Knockbacks 7 | . . . . . . . . . 2 . . . . . . . . . . . . . . . . . . . . 2 2 1 . Impact 3 | . . . . . . . . . 2 . . . . . . . . . . . . . . . . . . . . . . 1 . Kinetic 4 | . . . . . . . . . . . . . . . . . . . . . . . . . . . . . . 2 2 . . Secondary . | . . . . . . . . . . . . . . . . . . . . . . . . . . . . . . . . . . Self-Inflicted Damage 655 | . . . 6 29 . . 14 99 . 39 . . 31 187 . . . . 129 . . . . . . . . . . . . . 121 Shots 20 | . . . . 1 . . 1 4 . 2 . . 2 5 . . . . 2 . . . . . . . . . . . . . 3 Rammed 14 | 1 5 4 4 . . . . . . . . . . . . . . . . . . . . . . . . . . . . . . Targets Rammed 44 | 1 6 4 4 . . . 3 3 8 . . . . . . . . . . . . . . . 1 2 . 4 . 2 2 3 1 Kicked 29 | . . . . . . . 3 3 8 . . . . . . . . . . . . . . . 1 2 . 4 . 2 2 3 1 Crushed 1 | . 1 . . . . . . . . . . . . . . . . . . . . . . . . . . . . . . . . Highest Temperature 442 | 40 198 247 270 120 442 70 4 195 146 182 204 . 257 231 . 16 . 106 . . . . 146 . 215 . 133 . 221 219 207 . . Average Temperature 60 | 18 56 109 70 48 63 31 4 51 47 66 33 . 53 51 . 10 . 51 . . . . 73 . 88 . 19 . 100 90 88 . . Received Heat Transfer 4946 | . 309 159 522 . . . 189 243 273 54 90 . 423 534 . 273 . 48 . 12 33 90 45 36 316 54 97 114 282 423 201 9 117 Effects 5 | . . . 1 . 1 . . . . . . . 2 . . . . . . . . . . . 1 . . . . . . . . Shutdowns 1 | . . . . . 1 . . . . . . . . . . . . . . . . . . . . . . . . . . . . Energy Bleed 1 | . . . . . . . . . . . . . . . . . . . . . . . . . 1 . . . . . . . . Interference 3 | . . . 1 . . . . . . . . . 2 . . . . . . . . . . . . . . . . . . . . Siege Activations . | . . . . . . . . . . . . . . . . . . . . . . . . . . . . . . . . . . Martial Activations . | . . . . . . . . . . . . . . . . . . . . . . . . . . . . . . . . . . Shielding Activations . | . . . . . . . . . . . . . . . . . . . . . . . . . . . . . . . . . . Robots Disrupted . | . . . . . . . . . . . . . . . . . . . . . . . . . . . . . . . . . . Combat Hostiles . | . . . . . . . . . . . . . . . . . . . . . . . . . . . . . . . . . . Robots Corrupted 15 | . . . . . . . . . 1 . . . 10 . . . . . . . . . . . . . . . . . . 1 3 Combat Hostiles 13 | . . . . . . . . . . . . . 10 . . . . . . . . . . . . . . . . . . . 3 Parts Fried 14 | . . . . . . . . . . 2 . . 2 . . . . . . . . . . . . . . . . . . 4 6 Impact Corruptions 2 | . . . . . . . . . 1 . . . . . . . . . . . . . . . . . . . . . . 1 . Robots Melted 4 | . . . 1 . . . . . . . . . . . . 1 . . . . . 2 . . . . . . . . . . . Combat Hostiles 4 | . . . 1 . . . . . . . . . . . . 1 . . . . . 2 . . . . . . . . . . . Parts Melted 59 | . . 1 8 . 3 . . 6 2 1 . . 1 2 . 3 . . . . 1 6 . . 10 . 4 3 5 1 1 . 1 Heat Transferred 33597 | 325 925 777 2257 148 1444 . . 1443 1750 100 625 . 264 1359 . 1760 . 475 175 . 325 2075 1549 400 2750 525 1883 1000 3773 1695 1000 670 2125 Parts Sabotaged 7 | . . . . . . . . . . . . . . . . 7 . . . . . . . . . . . . . . . . . Parts Stolen . | . . . . . . . . . . . . . . . . . . . . . . . . . . . . . . . . . . Parts Stripped . | . . . . . . . . . . . . . . . . . . . . . . . . . . . . . . . . . . Power Chain Reactions . | . . . . . . . . . . . . . . . . . . . . . . . . . . . . . . . . . . Alert | -11 -10 -10 -9 -9 -9 -8 -8 -8 -7 -7 -7 -7 -7 -6 -6 -6 -6 -6 -5 -5 -5 -5 -4 -4 -4 -4 -4 -3 -3 -3 -3 -2 -1 ------- Run | Yrd Mat Min Mat Min Exi Min Mat Gar Fac Low Low Zio Dee Pro Fac Gar Fac DSF Fac Upp Upp War Pro Fac Gar Fac Gar Res Gar Res Gar Res Acc Maximum Alert Level 5 | . 1 . 1 . . . 1 4 2 . . . . . . 5 3 3 2 . . . . . 4 3 4 3 5 4 4 3 3 Low Security (%) 32 | 100 92 100 95 100 . 100 97 12 . . . . . . 100 6 . . . . . . . 100 4 . . . . . . . 37 Level 1 7 | . 7 . 4 . . . 2 11 . . . . . . . 21 . . 50 . . . . . 10 . . . . . . . 48 Level 2 20 | . . . . . . . . 15 100 . . . . . . 27 . 18 49 . . . . . 14 46 16 . 5 . . 74 4 Level 3 18 | . . . . . . . . 44 . . . . . . . 15 100 81 . . . . . . 33 53 54 100 24 . . 25 8 Level 4 16 | . . . . . . . . 15 . . . . . . . 22 . . . . . . . . 37 . 28 . 23 100 100 . . Level 5 5 | . . . . . . . . . . . . . . . . 5 . . . . . . . . . . . . 46 . . . . High Security . | . . . . . . . . . . . . . . . . . . . . . . . . . . . . . . . . . . Max Security . | . . . . . . . . . . . . . . . . . . . . . . . . . . . . . . . . . . Sterilizations 1 | . . . . . . . . . . . . . . . . . . 1 . . . . . . . . . . . . . . . Peak Influence 2606 | 10 232 56 219 99 . 75 201 1323 696 . . . . . 150 1632 856 865 531 . . . . 177 1528 815 1490 1037 2606 1597 1445 807 929 Initial 1465 | . . 56 3 55 . . . 41 694 . . . . . 150 39 856 588 453 . . . . 47 119 802 446 837 764 1465 1197 807 339 Average 655 | . 84 12 81 38 . 12 95 737 573 . . . . . 98 775 849 779 403 . . . . 76 990 710 978 894 1552 1499 1266 669 292 Influence Increases 17060 | 35 576 110 727 109 . 105 542 1332 571 270 187 . . 475 176 1633 5 317 228 . 125 917 441 174 1419 282 1044 478 2237 706 438 179 1222 Destroy 0b10 Robot/C 8820 | . 280 80 440 80 . 80 280 620 380 260 140 . . 300 . 620 . 180 80 . 80 620 380 140 760 180 460 300 860 320 220 120 560 Destroy 0b10 Robot/NC 275 | 35 40 10 30 . . . 30 15 5 . 5 . . 15 . . . . . . 5 15 5 . . . 5 5 5 15 . 10 25 Destroy Leader 1208 | . 72 20 124 10 . 10 84 20 110 10 30 . . 40 . 40 . 30 10 . 10 . 40 20 60 30 60 60 70 84 10 22 132 Allied During Kill 748 | . . . . . . . . . . . 12 . . . . 162 . 87 . . . 162 16 . . . 10 54 141 79 24 . 1 Successful Hack 318 | . 48 . 13 . . . 49 14 60 . . . . . 26 30 5 . 5 . . . . 4 . . 14 22 . . 7 . 21 Select Force Hacks 120 | . 60 . 30 . . . 30 . . . . . . . . . . . . . . . . . . . . . . . . . . Disable Machine 705 | . 15 . 15 . . . 30 135 15 . . . . . . 75 . 15 75 . . . . . 60 15 60 15 105 15 . . 60 Anti-Garrison Action 2450 | . . . . . . . . 450 . . . . . . . 600 . . . . . . . . 300 . 350 . 750 . . . . Destroy Structure 1051 | . 46 . 30 19 . . 24 78 1 . . . . . . 76 . 5 58 . . . . 10 74 12 70 22 96 28 27 27 348 Advance Influence 150 | . . . . . . . . . . . . . . . 150 . . . . . . . . . . . . . . . . . . Lose Combat Pursuer 1215 | . 15 . 45 . . 15 15 . . . . . . 120 . 30 . . . . 30 120 . . 165 45 15 . 210 165 150 . 75 Influence Decreases 16257 | 35 430 245 595 243 9 105 478 73 1255 519 377 200 . 475 120 57 796 293 592 501 113 196 1098 79 62 1172 192 949 650 1715 600 1048 985 Entered New Map 8051 | . . 90 8 88 9 . . 23 629 237 75 200 . . . 17 776 253 412 186 . 12 733 29 52 726 192 653 255 1141 400 628 227 Time Decay 6431 | 35 420 145 527 145 . 105 468 . 616 262 262 . . 405 120 . 20 . 180 315 113 144 355 50 . 286 . 246 . 374 . 410 428 Lost Part 910 | . 10 10 60 10 . . 10 50 10 20 . . . 70 . . . . . . . . . . 10 10 . 10 30 120 180 10 290 Lost Ally 440 | . . . . . . . . . . . 40 . . . . 40 . 40 . . . 40 10 . . . . 40 90 80 20 . 40 Purge Threat 425 | . . . . . . . . . . . . . . . . . . . . . . . . . . 150 . . 275 . . . . Squads Dispatched 54 | . 4 . 3 . . . 6 . 8 . . . . 1 . . . 1 2 . . . . 1 . 5 . 3 . 6 . 1 13 Investigation 13 | . 3 . 1 . . . 3 . 3 . . . . . . . . . . . . . . . . . . . . 1 . . 2 Extermination 10 | . . . . . . . . . 3 . . . . . . . . . 1 . . . . . . 1 . 1 . 2 . . 2 Reinforcement 12 | . 1 . 2 . . . . . 1 . . . . . . . . 1 1 . . . . . . . . 1 . . . 1 4 Assault 8 | . . . . . . . . . . . . . . 1 . . . . . . . . . . . 3 . . . 3 . . 1 Garrison 11 | . . . . . . . 3 . 1 . . . . . . . . . . . . . . 1 . 1 . 1 . . . . 4 Intercept . | . . . . . . . . . . . . . . . . . . . . . . . . . . . . . . . . . . Searches Triggered . | . . . . . . . . . . . . . . . . . . . . . . . . . . . . . . . . . . Construction Impeded 2 | . . . . . . . . . . . . . . . . . . . . . . . . . . . . . . . . 1 1 Haulers Reinforced . | . . . . . . . . . . . . . . . . . . . . . . . . . . . . . . . . . . Active Scanning Responses . | . . . . . . . . . . . . . . . . . . . . . . . . . . . . . . . . . . Cargo Convoy Interrupts . | . . . . . . . . . . . . . . . . . . . . . . . . . . . . . . . . . . Stealth | -11 -10 -10 -9 -9 -9 -8 -8 -8 -7 -7 -7 -7 -7 -6 -6 -6 -6 -6 -5 -5 -5 -5 -4 -4 -4 -4 -4 -3 -3 -3 -3 -2 -1 --------- Run | Yrd Mat Min Mat Min Exi Min Mat Gar Fac Low Low Zio Dee Pro Fac Gar Fac DSF Fac Upp Upp War Pro Fac Gar Fac Gar Res Gar Res Gar Res Acc Distress Signals 26 | . 3 . 8 . . . . . 2 . . . . 2 . . . . . . . . . . . 1 . . . 1 . 6 3 Communications Jammed 9 | . . . . . . . . . . . . . . . . . . . . . . . . . . . 7 . . 2 . . . Distress Signals 9 | . . . . . . . . . . . . . . . . . . . . . . . . . . . 7 . . 2 . . . Times Spotted 683 | . 28 4 44 6 19 5 22 30 28 12 7 . 25 30 1 33 . 6 5 1 5 61 21 7 39 13 22 23 45 36 30 11 64 Peak Tracking Total 17 | . 4 2 5 4 9 4 6 5 5 9 4 . 6 10 1 3 . 3 5 1 2 10 5 3 7 3 3 8 8 13 17 5 15 Tactical Retreats 45 | . 1 . 2 . 7 1 1 . . . . . 2 4 . 2 . . . . 1 2 . . 5 2 1 . 5 3 3 . 3 Traps | -11 -10 -10 -9 -9 -9 -8 -8 -8 -7 -7 -7 -7 -7 -6 -6 -6 -6 -6 -5 -5 -5 -5 -4 -4 -4 -4 -4 -3 -3 -3 -3 -2 -1 ------- Run | Yrd Mat Min Mat Min Exi Min Mat Gar Fac Low Low Zio Dee Pro Fac Gar Fac DSF Fac Upp Upp War Pro Fac Gar Fac Gar Res Gar Res Gar Res Acc Traps Triggered 34 | . . . . . . . . 4 3 . . . . . . 8 . 1 . . . . . . 5 2 4 . 4 1 1 . 1 Indirectly . | . . . . . . . . . . . . . . . . . . . . . . . . . . . . . . . . . . Trap Hack Attempts . | . . . . . . . . . . . . . . . . . . . . . . . . . . . . . . . . . . Triggered . | . . . . . . . . . . . . . . . . . . . . . . . . . . . . . . . . . . Disarmed . | . . . . . . . . . . . . . . . . . . . . . . . . . . . . . . . . . . Reprogrammed . | . . . . . . . . . . . . . . . . . . . . . . . . . . . . . . . . . . Reused 6 | . . . . . . . . . . . . . 6 . . . . . . . . . . . . . . . . . . . . Traps Extracted 1 | . . . . . . . . . . . . . 1 . . . . . . . . . . . . . . . . . . . . Installed 8 | . . . . . . . . . . . . . 8 . . . . . . . . . . . . . . . . . . . . Triggered . | . . . . . . . . . . . . . . . . . . . . . . . . . . . . . . . . . . Most Traps Carried 8 | . . . . . . . . 8 8 8 8 8 8 1 1 1 1 1 . . . . . . . . . . . . . . . Machines | -11 -10 -10 -9 -9 -9 -8 -8 -8 -7 -7 -7 -7 -7 -6 -6 -6 -6 -6 -5 -5 -5 -5 -4 -4 -4 -4 -4 -3 -3 -3 -3 -2 -1 ---------- Run | Yrd Mat Min Mat Min Exi Min Mat Gar Fac Low Low Zio Dee Pro Fac Gar Fac DSF Fac Upp Upp War Pro Fac Gar Fac Gar Res Gar Res Gar Res Acc Machines Disabled 107 | . 1 . 1 . 15 . 2 17 1 2 . . 2 1 . 15 . 1 5 . . 2 1 . 8 1 9 1 17 1 . . 4 Max in Single Turn 5 | . 1 . 1 . 2 . 1 2 1 1 . . 1 1 . 2 . . 5 . . 1 1 . 2 1 1 1 1 1 . . 1 Garrison Access 7 | . . . . . . . . . 3 . . . . . . . . . . . . . . . . 1 . . . . . 2 1 Garrison Relay 29 | . . . . . . . . 6 . . . . . . . 7 . . . . . . . . 4 . 5 . 7 . . . . Phase Generator 2 | . . . . . . . . 1 . . . . . . . 1 . . . . . . . . . . . . . . . . . Machines Repaired . | . . . . . . . . . . . . . . . . . . . . . . . . . . . . . . . . . . Machines Dismantled . | . . . . . . . . . . . . . . . . . . . . . . . . . . . . . . . . . . Machines Sabotaged . | . . . . . . . . . . . . . . . . . . . . . . . . . . . . . . . . . . Overloaded Fab Kills . | . . . . . . . . . . . . . . . . . . . . . . . . . . . . . . . . . . Hacking | -11 -10 -10 -9 -9 -9 -8 -8 -8 -7 -7 -7 -7 -7 -6 -6 -6 -6 -6 -5 -5 -5 -5 -4 -4 -4 -4 -4 -3 -3 -3 -3 -2 -1 --------- Run | Yrd Mat Min Mat Min Exi Min Mat Gar Fac Low Low Zio Dee Pro Fac Gar Fac DSF Fac Upp Upp War Pro Fac Gar Fac Gar Res Gar Res Gar Res Acc Machines Accessed 87 | . 9 1 8 . 2 . 12 3 14 . 1 1 . . 3 2 1 . 1 1 . . . 1 1 5 1 4 2 4 1 2 7 Terminals 53 | . 6 . 7 . . . 9 3 7 . . . . . 1 2 1 . 1 . . . . . 1 3 1 2 2 2 1 . 4 Fabricators 4 | . . . . . . . . . 1 . . . . . . . . . . . . . . . . 1 . . . . . . 2 Repair Stations 6 | . 1 . . . . . 1 . 2 . . . . . 1 . . . . . . . . . . . . . . 1 . . . Recycling Units 3 | . 2 . . . . . 1 . . . . . . . . . . . . . . . . . . . . . . . . . . Scanalyzers 3 | . . . 1 . . . . . 1 . . . . . . . . . . . . . . . . . . 1 . . . . . Garrison Access 12 | . . . . . . . 1 . 3 . . . . . 1 . . . . . . . . 1 . 1 . 1 . 1 . 2 1 Total Hacks 197 | . 20 1 26 . 2 . 33 6 34 . 1 5 . . 6 3 2 . 1 1 . . . 2 1 9 2 6 3 8 4 4 17 Successful 92 | . 12 1 9 . 2 . 15 1 18 . 1 5 . . 2 2 1 . 1 1 . . . 1 . 3 1 4 . 3 1 4 4 Failed 105 | . 8 . 17 . . . 18 5 16 . . . . . 4 1 1 . . . . . . 1 1 6 1 2 3 5 3 . 13 Catastrophic 24 | . 1 . 4 . . . 3 1 3 . . . . . 1 . . . . . . . . . . 3 1 . 1 . 1 . 5 Database Lockouts . | . . . . . . . . . . . . . . . . . . . . . . . . . . . . . . . . . . Manual 99 | . 17 . 26 . 1 . 25 1 11 . . 4 . . 1 1 . . . . . . . . . 3 1 1 2 1 . . 4 Terminals 129 | . 16 . 24 . . . 27 6 15 . . . . . 2 3 2 . 1 . . . . . 1 4 2 4 3 4 4 . 11 Fabricators 11 | . . . . . . . . . 3 . . . . . . . . . . . . . . . . 4 . . . . . . 4 Repair Stations 17 | . 2 . . . . . 2 . 7 . . . . . 3 . . . . . . . . . . . . . . 3 . . . Recycling Units 3 | . 2 . . . . . 1 . . . . . . . . . . . . . . . . . . . . . . . . . . Scanalyzers 7 | . . . 2 . . . . . 4 . . . . . . . . . . . . . . . . . . 1 . . . . . Garrison Access 20 | . . . . . . . 3 . 5 . . . . . 1 . . . . . . . . 2 . 1 . 1 . 1 . 4 2 Terminal Hacks 34 | . 3 1 1 . 2 . 5 1 2 . 1 5 . . 1 2 1 . 1 1 . . . . . 1 1 2 . . 1 . 2 Record 1 | . . . . . 1 . . . . . . . . . . . . . . . . . . . . . . . . . . . . Part Schematic 7 | . 1 . . . . . . . 1 . . 5 . . . . . . . . . . . . . . . . . . . . . Robot Analysis 1 | . 1 . . . . . . . . . . . . . . . . . . . . . . . . . . . . . . . . Open Door 4 | . . 1 . . . . . . . . 1 . . . . . . . . 1 . . . . . . . . . . 1 . . Open DSF 1 | . . . . . . . . . . . . . . . . . 1 . . . . . . . . . . . . . . . . Branch Access Points 3 | . . . . . . . 1 . 1 . . . . . . . . . . . . . . . . . . . . . . . 1 Emergency Access Points 2 | . . . . . . . . . . . . . . . . 1 . . . . . . . . . . 1 . . . . . . Terminal Index 3 | . . . 1 . . . 2 . . . . . . . . . . . . . . . . . . . . . . . . . . Unreport Threat 1 | . . . . . . . . . . . . . . . . . . . . . . . . . . 1 . . . . . . . Maintenance Status 4 | . . . . . . . 1 . . . . . . . 1 . . . . . . . . . . . . 1 . . . . 1 Registered Components 1 | . 1 . . . . . . . . . . . . . . . . . . . . . . . . . . . . . . . . Zone Layout 3 | . . . . . . . 1 . . . . . . . . . . . 1 . . . . . . . . 1 . . . . . Patrol Navigation 1 | . . . . . . . . 1 . . . . . . . . . . . . . . . . . . . . . . . . . Security Stations 1 | . . . . . . . . . . . . . . . . 1 . . . . . . . . . . . . . . . . . Proto ID Catalog 1 | . . . . . 1 . . . . . . . . . . . . . . . . . . . . . . . . . . . . Fabricator Hacks 3 | . . . . . . . . . 2 . . . . . . . . . . . . . . . . 1 . . . . . . . Network Status 1 | . . . . . . . . . . . . . . . . . . . . . . . . . . 1 . . . . . . . Load Schematic 1 | . . . . . . . . . 1 . . . . . . . . . . . . . . . . . . . . . . . . Build 1 | . . . . . . . . . 1 . . . . . . . . . . . . . . . . . . . . . . . . Repair Station Hacks 9 | . 2 . . . . . 2 . 4 . . . . . . . . . . . . . . . . . . . . 1 . . . Scan Component 6 | . 1 . . . . . 1 . 3 . . . . . . . . . . . . . . . . . . . . 1 . . . Repair 3 | . 1 . . . . . 1 . 1 . . . . . . . . . . . . . . . . . . . . . . . . Recycling Unit Hacks . | . . . . . . . . . . . . . . . . . . . . . . . . . . . . . . . . . . Scanalyzer 5 | . . . . . . . . . 4 . . . . . . . . . . . . . . . . . . 1 . . . . . Insert Component 3 | . . . . . . . . . 2 . . . . . . . . . . . . . . . . . . 1 . . . . . Analyze 2 | . . . . . . . . . 2 . . . . . . . . . . . . . . . . . . . . . . . . Garrison Access Hacks 15 | . . . . . . . 1 . 3 . . . . . 1 . . . . . . . . 1 . 1 . 1 . 1 . 4 2 Unlock Access 6 | . . . . . . . 1 . . . . . . . 1 . . . . . . . . 1 . 1 . 1 . 1 . . . Seal Access 6 | . . . . . . . . . 3 . . . . . . . . . . . . . . . . . . . . . . 2 1 Coupler Status 3 | . . . . . . . . . . . . . . . . . . . . . . . . . . . . . . . . 2 1 Unauthorized Hacks 26 | . 7 . 8 . . . 7 . 3 . . . . . . . . . . . . . . . . . . . . 1 . . . Terminals 21 | . 5 . 7 . . . 6 . 3 . . . . . . . . . . . . . . . . . . . . . . . . Botnet 3 | . . . 1 . . . . . 2 . . . . . . . . . . . . . . . . . . . . . . . . Operators 1 | . . . . . . . . . 1 . . . . . . . . . . . . . . . . . . . . . . . . Skim 17 | . 5 . 6 . . . 6 . . . . . . . . . . . . . . . . . . . . . . . . . . Fabricators . | . . . . . . . . . . . . . . . . . . . . . . . . . . . . . . . . . . Repair Stations 1 | . . . . . . . . . . . . . . . . . . . . . . . . . . . . . . 1 . . . Patch 1 | . . . . . . . . . . . . . . . . . . . . . . . . . . . . . . 1 . . . Recycling Units 3 | . 2 . . . . . 1 . . . . . . . . . . . . . . . . . . . . . . . . . . Tunnel 3 | . 2 . . . . . 1 . . . . . . . . . . . . . . . . . . . . . . . . . . Scanalyzers 1 | . . . 1 . . . . . . . . . . . . . . . . . . . . . . . . . . . . . . Extract 1 | . . . 1 . . . . . . . . . . . . . . . . . . . . . . . . . . . . . . Garrison Access . | . . . . . . . . . . . . . . . . . . . . . . . . . . . . . . . . . . Data Cores Recovered 2 | . . . . . . . 1 . . . . . . . . . . . . . . . . . . . . . . 1 . . . Used . | . . . . . . . . . . . . . . . . . . . . . . . . . . . . . . . . . . Hacking Detections 70 | . 7 . 8 . . . 10 3 11 . . . . . 2 1 1 . 1 . . . . 1 1 5 . 3 2 4 1 2 7 Full Trace Events 9 | . 1 . 1 . . . 2 . 3 . . . . . . . . . . . . . . . . . . . . . . . 2 Feedback Events 2 | . . . . . . . . . . . . . . . . . . . . . . . . . . . . . . . . . 2 Corruption 1 | . . . . . . . . . . . . . . . . . . . . . . . . . . . . . . . . . 1 Hackware Fried 1 | . . . . . . . . . . . . . . . . . . . . . . . . . . . . . . . . . 1 Feedback Blocked . | . . . . . . . . . . . . . . . . . . . . . . . . . . . . . . . . . . Robot Schematics Acquired 3 | . . . . . . . . . . . . 3 . . . . . . . . . . . . . . . . . . . . . Robots Built . | . . . . . . . . . . . . . . . . . . . . . . . . . . . . . . . . . . Authchips . | . . . . . . . . . . . . . . . . . . . . . . . . . . . . . . . . . . Time . | . . . . . . . . . . . . . . . . . . . . . . . . . . . . . . . . . . Total Robot Build Rating . | . . . . . . . . . . . . . . . . . . . . . . . . . . . . . . . . . . Part Schematics Acquired 25 | . 1 . 3 . . . . . 3 . . 18 . . . . . . . . . . . . . . . . . . . . . Parts Built 2 | . . . . . . . . . 2 . . . . . . . . . . . . . . . . . . . . . . . . Authchips . | . . . . . . . . . . . . . . . . . . . . . . . . . . . . . . . . . . Time 62 | . . . . . . . . . 62 . . . . . . . . . . . . . . . . . . . . . . . . Total Part Build Rating 4 | . . . . . . . . . 4 . . . . . . . . . . . . . . . . . . . . . . . . Parts Repaired 3 | . 1 . . . . . 1 . 1 . . . . . . . . . . . . . . . . . . . . . . . . Time 218 | . 26 . . . . . 68 . 124 . . . . . . . . . . . . . . . . . . . . . . . . Parts Recycled . | . . . . . . . . . . . . . . . . . . . . . . . . . . . . . . . . . . Recycled Matter . | . . . . . . . . . . . . . . . . . . . . . . . . . . . . . . . . . . Retrieved Matter . | . . . . . . . . . . . . . . . . . . . . . . . . . . . . . . . . . . Retrieved Components . | . . . . . . . . . . . . . . . . . . . . . . . . . . . . . . . . . . Parts Scanalyzed 2 | . . . . . . . . . 2 . . . . . . . . . . . . . . . . . . . . . . . . Part Schematics Acquired 2 | . . . . . . . . . 2 . . . . . . . . . . . . . . . . . . . . . . . . Parts Damaged . | . . . . . . . . . . . . . . . . . . . . . . . . . . . . . . . . . . Bothacking | -11 -10 -10 -9 -9 -9 -8 -8 -8 -7 -7 -7 -7 -7 -6 -6 -6 -6 -6 -5 -5 -5 -5 -4 -4 -4 -4 -4 -3 -3 -3 -3 -2 -1 ------------ Run | Yrd Mat Min Mat Min Exi Min Mat Gar Fac Low Low Zio Dee Pro Fac Gar Fac DSF Fac Upp Upp War Pro Fac Gar Fac Gar Res Gar Res Gar Res Acc Used RIF Installer 4 | . . . . . . . . . . . . . . . . . . . . . . . . . 2 . 1 . 1 . . . . Zone Cloak 2 | . . . . . . . . . . . . . . . . . . . . . . . . . 1 . 1 . . . . . . Patrol Navigation 1 | . . . . . . . . . . . . . . . . . . . . . . . . . . . . . 1 . . . . Robots Hacked 10 | . . . . . . . . . . . . 1 . . . . . . . . . . . . . 1 . . 1 . . 5 2 Non-combat 3 | . . . . . . . . . . . . . . . . . . . . . . . . . . 1 . . 1 . . 1 . Combat 7 | . . . . . . . . . . . . 1 . . . . . . . . . . . . . . . . . . . 4 2 Robot Hacks Applied 12 | . . . . . . . . . . . . 1 . . . . . . . . . . . . . 1 . . 3 . . 5 2 parse_system 7 | . . . . . . . . . . . . 1 . . . . . . . . . . . . . 1 . . . . . 5 . purge_threat 2 | . . . . . . . . . . . . . . . . . . . . . . . . . . . . . 2 . . . . formatsys_low 1 | . . . . . . . . . . . . . . . . . . . . . . . . . . . . . 1 . . . . formatsys_high 2 | . . . . . . . . . . . . . . . . . . . . . . . . . . . . . . . . . 2 Relay Couplers Released 127 | . . . . . . . . 23 . . . . . . . 29 . . . . . . . . 18 3 22 . 30 . . . 2 Machine Destruction 127 | . . . . . . . . 23 . . . . . . . 29 . . . . . . . . 18 3 22 . 30 . . . 2 Attached 2 | . . . . . . . . . . . . . . . . . . . . . . . . . . . . . 1 . . . 1 Fabnet Peak Effective % . | . . . . . . . . . . . . . . . . . . . . . . . . . . . . . . . . . . Robots Rewired 26 | . . . . . . . . . . 2 . . . 1 2 2 . . . . . 5 . . . . . . 11 . 3 . . Allies Hacked 1 | . . . . . . . . . . . . . . . . . . . . . . . . . . . . . . 1 . . . Hacks Repelled . | . . . . . . . . . . . . . . . . . . . . . . . . . . . . . . . . . . Allies | -11 -10 -10 -9 -9 -9 -8 -8 -8 -7 -7 -7 -7 -7 -6 -6 -6 -6 -6 -5 -5 -5 -5 -4 -4 -4 -4 -4 -3 -3 -3 -3 -2 -1 -------- Run | Yrd Mat Min Mat Min Exi Min Mat Gar Fac Low Low Zio Dee Pro Fac Gar Fac DSF Fac Upp Upp War Pro Fac Gar Fac Gar Res Gar Res Gar Res Acc Total Allies 31 | . . . . . . . . . . 2 . . . 1 2 2 . . . . . 5 . . . . 2 . 12 . 3 . 2 Largest Group 5 | . . . . . . . . . . 2 2 . . 1 2 2 2 2 . . . 5 3 . . . 2 2 5 5 3 . 2 Highest-Rated Group 364 | . . . . . . . . . . 32 32 . . 20 64 238 238 238 . . . 288 177 . . . 190 190 364 294 126 . 157 Highest-Rated Ally 148 | . . . . . . . . . . 16 16 . . 20 32 119 119 119 . . . 68 64 . . . 95 95 148 148 51 . 82 Initial Warlord ECA Mod 360 | . . . . . . . . . 12 12 12 12 12 11 11 11 23 23 32 32 32 32 31 31 31 . . . . . . . . Total Orders 10 | . . . . . 2 . . . . . . . . . . . . . . . . 2 . . . . . . 6 . . . . STAY 4 | . . . . . . . . . . . . . . . . . . . . . . 1 . . . . . . 3 . . . . FOLLOW 4 | . . . . . . . . . . . . . . . . . . . . . . 1 . . . . . . 3 . . . . RETURN 2 | . . . . . 2 . . . . . . . . . . . . . . . . . . . . . . . . . . . . Ally Attacks 289 | . . . . . 61 . . . . . 27 . . . 1 28 . 17 . . . 27 7 . . . 3 13 28 64 9 . 4 Total Damage 7143 | . . . . . 311 . . . . . 349 . . . 26 1219 . 764 . . . 980 145 . . . 183 483 1129 1300 102 . 152 Kills 45 | . . . . . . . . . . . 3 . . . . 9 . 6 . . . 8 3 . . . 1 1 8 3 2 . 1 Allies Corrupted 3 | . . . . . . . . . . . . . . . . . . . . . . 1 1 . . . . . 1 . . . . Allies Melted 1 | . . . . . . . . . . . . . . . . . . . . . . 1 . . . . . . . . . . . Intel | -11 -10 -10 -9 -9 -9 -8 -8 -8 -7 -7 -7 -7 -7 -6 -6 -6 -6 -6 -5 -5 -5 -5 -4 -4 -4 -4 -4 -3 -3 -3 -3 -2 -1 ------- Run | Yrd Mat Min Mat Min Exi Min Mat Gar Fac Low Low Zio Dee Pro Fac Gar Fac DSF Fac Upp Upp War Pro Fac Gar Fac Gar Res Gar Res Gar Res Acc Active Infowar (turns) 7423 | 112 1472 816 1241 107 578 714 921 . . 216 . . . . . . . 16 . . 1 . . . . . 99 56 . 360 . . 714 Optics 730 | . . . . . . . . . . . . . . . . . . 16 . . . . . . . . . . . . . . 714 Sensors 748 | . . . . . . . . . . 216 . . . . . . . . . . . . . . . . . 56 . . . . 476 Traps 1 | . . . . . . . . . . . . . . . . . . . . . 1 . . . . . . . . . . . . Seismic 5961 | 112 1472 816 1241 107 578 714 921 . . . . . . . . . . . . . . . . . . . . . . . . . . Jamming 459 | . . . . . . . . . . . . . . . . . . . . . . . . . . . 99 . . 360 . . . Robot Analysis Total 1 | . 1 . . . . . . . . . . . . . . . . . . . . . . . . . . . . . . . . Derelict Logs Recovered 11 | . . 2 . 1 . . . . . . 1 1 . 1 . . . . . . 2 . 3 . . . . . . . . . . Drone Launches 11 | . . . . . 11 . . . . . . . . . . . . . . . . . . . . . . . . . . . . Drone Recoveries 11 | . . . . . 11 . . . . . . . . . . . . . . . . . . . . . . . . . . . . Exploration | -11 -10 -10 -9 -9 -9 -8 -8 -8 -7 -7 -7 -7 -7 -6 -6 -6 -6 -6 -5 -5 -5 -5 -4 -4 -4 -4 -4 -3 -3 -3 -3 -2 -1 ------------- Run | Yrd Mat Min Mat Min Exi Min Mat Gar Fac Low Low Zio Dee Pro Fac Gar Fac DSF Fac Upp Upp War Pro Fac Gar Fac Gar Res Gar Res Gar Res Acc Turns Passed 40580 | 244 1472 820 1514 360 3447 714 1525 1428 2056 571 575 2520 3408 1576 258 2002 44 403 378 916 1231 1261 1721 110 1696 633 1224 527 2263 876 753 996 1058 Spaces Moved 23224 | 108 751 418 507 228 2210 556 630 910 1370 428 429 2061 2020 727 123 930 25 157 215 615 595 708 787 59 984 422 768 304 1186 551 228 614 600 Core 9 | 4 . . . . . . . . . . . . . . . . . . . . . . . . . . . . . . . . 5 Treads 1804 | 104 751 418 169 19 343 . . . . . . . . . . . . . . . . . . . . . . . . . . . . Legs 19490 | . . . . . 493 556 630 910 1370 428 429 2061 2020 727 123 930 25 157 215 615 595 708 787 59 984 422 768 304 1186 551 228 614 595 Wheels 1921 | . . . 338 209 1374 . . . . . . . . . . . . . . . . . . . . . . . . . . . . Hover . | . . . . . . . . . . . . . . . . . . . . . . . . . . . . . . . . . . Flight . | . . . . . . . . . . . . . . . . . . . . . . . . . . . . . . . . . . Fastest Speed 50 | 50 160 160 115 130 115 126 120 120 120 120 120 120 113 132 176 135 180 125 125 125 125 125 125 120 112 112 120 128 124 88 90 120 50 Average Speed 134 | 155 160 160 138 139 133 126 123 121 123 120 120 120 127 183 184 183 180 172 127 125 125 125 151 120 119 119 125 133 146 125 137 129 125 Slowest Speed 240 | 160 160 240 240 240 240 126 126 123 193 120 190 190 190 192 210 240 180 180 175 125 175 176 175 120 120 120 128 182 186 186 180 180 185 Overloaded Moves 107 | . . . . . . . . . . . . . . . . . . . . . . . . . . . . . . 42 65 . . Propulsion Burnouts . | . . . . . . . . . . . . . . . . . . . . . . . . . . . . . . . . . . Robots Hopped . | . . . . . . . . . . . . . . . . . . . . . . . . . . . . . . . . . . Potential Cave-ins 2 | . . . . . . . . . . . . . . . . . . . . . 2 . . . . . . . . . . . . Cave-ins Triggered . | . . . . . . . . . . . . . . . . . . . . . . . . . . . . . . . . . . Exploration Rate (%) 55 | 6 95 99 61 34 93 93 56 97 38 62 51 89 88 75 3 87 1 86 6 70 61 84 74 2 75 17 86 12 90 19 34 18 23 Regions Visited 33 Branch Regions 13 Pre-discovered Areas 14 | . 2 1 2 . 1 . 4 . . 1 . . . 1 . . . . . . 2 . . . . . . . . . . . . Known Exits Taken 14 | . . . 1 . . 1 1 . 1 1 1 . . 1 1 . 1 . 1 . . . . 1 . 1 . 1 . 1 . . . Unknown Exits Taken 12 | 1 1 1 . 1 1 . . . . . . 1 1 . . . . . . 1 1 1 1 . . . . . . . . 1 . Scrap Searched 22 | . . 1 . 1 . 2 . . . 3 2 4 . 4 . . . . . 1 3 . 1 . . . . . . . . . . Spaces Dug 61 | . . . 6 . . . 16 . . . . . 12 . . 3 . 6 1 . 9 . . . . 2 . . 4 . . . 2 Terrain Destroyed 858 | . 50 . 31 21 69 . 26 98 . 15 2 . 24 88 . 94 . 10 29 . 25 11 10 7 21 4 14 5 22 10 10 8 154 Melee . | . . . . . . . . . . . . . . . . . . . . . . . . . . . . . . . . . . Projectile 247 | . . . . . . . 8 . . . 2 . 10 26 . 18 . 10 1 . 25 11 10 7 21 4 14 5 22 10 10 8 25 AOE 608 | . 50 . 31 21 69 . 16 98 . 15 . . 14 61 . 76 . . 28 . . . . . . . . . . . . . 129 Terrain Rammed . | . . . . . . . . . . . . . . . . . . . . . . . . . . . . . . . . . . Walls Destroyed . | . . . . . . . . . . . . . . . . . . . . . . . . . . . . . . . . . . Machines Disabled . | . . . . . . . . . . . . . . . . . . . . . . . . . . . . . . . . . . Actions | -11 -10 -10 -9 -9 -9 -8 -8 -8 -7 -7 -7 -7 -7 -6 -6 -6 -6 -6 -5 -5 -5 -5 -4 -4 -4 -4 -4 -3 -3 -3 -3 -2 -1 --------- Run | Yrd Mat Min Mat Min Exi Min Mat Gar Fac Low Low Zio Dee Pro Fac Gar Fac DSF Fac Upp Upp War Pro Fac Gar Fac Gar Res Gar Res Gar Res Acc Total 30528 | 145 914 523 1181 258 2579 563 1304 1116 1653 464 455 2109 2757 858 153 1112 24 263 319 765 1055 999 1260 79 1379 524 935 388 1547 657 611 785 794 Wait 4440 | 4 57 64 532 12 166 2 567 43 158 2 4 12 472 31 4 37 . 61 86 149 428 150 425 1 261 69 38 29 90 28 295 92 71 Move 23198 | 107 750 417 506 227 2209 555 630 909 1370 427 428 2060 2019 726 123 929 24 156 214 614 594 707 786 59 983 422 767 304 1185 551 227 613 600 Hop . | . . . . . . . . . . . . . . . . . . . . . . . . . . . . . . . . . . Pick Up 198 | 6 8 2 12 3 23 . 7 9 11 2 1 4 52 1 2 3 . 6 2 1 2 9 . 2 5 . 4 4 4 1 2 5 5 Fast Attach 223 | 7 3 2 12 . 17 . 7 7 11 2 2 12 23 . 1 13 . 8 1 . 4 13 2 1 5 2 10 3 21 7 11 12 4 Attach 60 | . . 1 4 1 3 . . 2 1 1 . 1 9 3 1 1 . 1 3 . 1 2 . 1 1 . . 1 2 3 4 3 10 Detach 37 | . . . 1 . 5 . . . 1 . . 1 3 3 . 2 . . 2 . . 2 . . . 1 . . 3 2 3 3 5 Swap 223 | 1 15 4 12 4 20 . 8 16 20 10 2 1 24 3 2 7 . . 1 . . 3 2 . 7 2 19 5 14 7 1 6 7 Drop 497 | . 10 6 21 3 37 . 12 15 25 4 4 16 58 5 3 19 . 16 7 1 12 29 14 2 23 5 30 14 47 14 5 25 15 Fire 1355 | 19 65 23 77 8 99 6 70 107 49 9 14 1 89 78 . 75 . 15 3 . 14 45 31 13 76 21 55 24 106 41 30 23 69 Melee 6 | . . . . . . . . . . . . 1 . . . . . . . . . . . . . . . . . . . . 5 Ram 3 | . . . 3 . . . . . . . . . . . . . . . . . . . . . . . . . . . . . . Kick 28 | . . . . . . . 3 3 7 . . . . . . . . . . . . . . . 1 2 . 4 . 2 2 3 1 Crush 12 | 1 6 4 1 . . . . . . . . . . . . . . . . . . . . . . . . . . . . . . Escape Stasis 74 | . . . . . . . . 5 . . . . . . . 20 . . . . . . . . 17 . 12 . 20 . . . . Rewire 166 | . . . . . . . . . . 7 . . . 8 17 6 . . . . . 39 . . . . . . 55 1 31 . 2 Trap 8 | . . . . . . . . . . . . . 8 . . . . . . . . . . . . . . . . . . . . Miscellaneous . | . . . . . . . . . . . . . . . . . . . . . . . . . . . . . . . . . . Route ------- -11/Scrapyard -10/Materials (discovered 5 exits: *Mat x3 / *Min x2) -10/Mines (discovered 3 exits: *Mat x2 / [*Sub]) -9/Materials (discovered 5 exits: *Mat x3 / *Min x2) -9/Mines (discovered 2 exits: *Exi / *Zio) -9/Exiles (discovered 2 exits: [*Min x2]) -8/Mines (discovered 2 exits: *Mat x2) -8/Materials (discovered 4 exits: *Fac x3 / Gar) -8/Garrison (discovered 3 exits: *Fac x3) -7/Factory (discovered 4 exits: *Fac x2 / *Low x2) -7/Lower Caves -7/Lower Caves -7/Zion (discovered 2 exits: [*Dee] / [*Pro]) -7/Deep Caves -6/Proximity Caves -6/Factory -6/Garrison (discovered 3 exits: *Fac x3) -6/Factory -6/DSF -5/Factory (discovered 2 exits: *Upp / Ext) -5/Upper Caves -5/Upper Caves -5/Warlord -4/Proximity Caves -4/Factory -4/Garrison (discovered 3 exits: *Fac x3) -4/Factory -4/Garrison (discovered 3 exits: *Res x3) -3/Research (discovered 2 exits: *Res / Gar) -3/Garrison (discovered 4 exits: *Res x4) -3/Research -3/Garrison -2/Research (discovered 3 exits: *Acc x2 / [*Tes]) -1/Access (discovered 1 exit: Com) History --------- Turn | Location | Event 7 | -11/Scrapyard | Discovered new exit (range 16) 245 | -11/Scrapyard | Entered Materials 303 | -10/Materials | Build established: Mutant 314 | -10/Materials | Discovered new exit (range 6) 628 | -10/Materials | Discovered new exit (range 11) 826 | -10/Materials | Discovered new exit (range 3) 867 | -10/Materials | Repaired Sml. Laser 983 | -10/Materials | Build established: Scavenger-Mutant 1488 | -10/Materials | Discovered new exit (range 4) 1563 | -10/Materials | Discovered new exit (range 11) 1717 | -10/Materials | Entered Mines 1934 | -10/Mines | Discovered new exit (range 7) 2063 | -10/Mines | Learned location of 1 exit from Materials 2102 | -10/Mines | Found the Drone Emporium 2110 | -10/Mines | Found Prototype Device 2110 | -10/Mines | Identified Thief Drone Bay 2211 | -10/Mines | Discovered new exit (range 9) 2256 | -10/Mines | Learned location of Zion (-7) 2327 | -10/Mines | Core integrity fell below 50% 2496 | -10/Mines | Discovered new exit (range 15) 2537 | -10/Mines | Entered Materials 2537 | -9/Materials | Evolved 2 slots: Propulsion x1, Utility x1 2538 | -9/Materials | Identified exit to Materials 2928 | -9/Materials | Lost 3 parts (1p1u1w) 3459 | -9/Materials | Identified exit to Mines 3763 | -9/Materials | Learned Storage stockpile data 3885 | -9/Materials | Core integrity fell below 50% 4051 | -9/Materials | Entered Mines 4052 | -9/Mines | A Derelict revealed a hidden shortcut to a safe place 4096 | -9/Mines | Deemed a non-threat by the Exiles lab entrance 4097 | -9/Mines | Discovered new exit (range 5) 4191 | -9/Mines | Received a Rocket Launcher from a helpful Derelict 4236 | -9/Mines | Learned Materials stockpile data 4279 | -9/Mines | Assembled infested the area 4284 | -9/Mines | Assisted by a Guerilla fighting off Assembled 4411 | -9/Mines | Entered Exiles 4428 | -9/Exiles | Discovered new exit (range 15) 4473 | -9/Exiles | Met 8R-AWN 4491 | -9/Exiles | Met EX-HEX 4531 | -9/Exiles | Met EX-BIN 4547 | -9/Exiles | Met EX-DEC 4623 | -9/Exiles | Visited The Gauntlet 4828 | -9/Exiles | Discovered new exit (range 10) 4925 | -9/Exiles | Build established: Mutant 5293 | -9/Exiles | Aligned with FarCom system 5294 | -9/Exiles | Given EX-Vault access code 5327 | -9/Exiles | Opened EX-Vault 5346 | -9/Exiles | Found XL Autogun Array 5373 | -9/Exiles | Warned to stay clear of 0b10 Research branches 5623 | -9/Exiles | Attacked by the Exiles 5731 | -9/Exiles | Found Prototype Ballistic Gun 5982 | -9/Exiles | Core integrity fell below 20% 6020 | -9/Exiles | Lost 4 parts (1p1n2u) 6564 | -9/Exiles | Destroyed 8R-AWN 6594 | -9/Exiles | Found Prototype Device 6594 | -9/Exiles | Identified AS-neutralizer No. 17b 6652 | -9/Exiles | Identified 8R-AWN's Boregun 6652 | -9/Exiles | Found 8R-AWN's Boregun 6825 | -9/Exiles | Destroyed EX-BIN 6835 | -9/Exiles | Found Prototype Device 6835 | -9/Exiles | Identified System Purifier 6861 | -9/Exiles | Destroyed EX-HEX 6891 | -9/Exiles | Destroyed EX-DEC 7858 | -9/Exiles | Entered Mines 8285 | -8/Mines | Discovered exit to Materials (range 7) 8310 | -8/Mines | Discovered exit to Materials (range 6) 8572 | -8/Mines | Entered Materials 8572 | -8/Materials | Evolved 2 slots: Utility x2 8683 | -8/Materials | Garrison activated, responded to threat 8806 | -8/Materials | Repaired Adv. Recalibrator? 9027 | -8/Materials | Discovered new exit (range 15) 9642 | -8/Materials | Learned location of Extension (-5) 9717 | -8/Materials | Learned Factory emergency access door positions 9780 | -8/Materials | Identified exit to Factory 9834 | -8/Materials | Learned Storage stockpile data 9878 | -8/Materials | Learned location of 1 exit from Storage 9910 | -8/Materials | Learned location of 2 exits from Lower Caves 9962 | -8/Materials | Learned 2 Storage zone layouts 10058 | -8/Materials | Learned Factory fabricator intel 10097 | -8/Materials | Identified exit to Garrison 10097 | -8/Materials | Entered Garrison 10117 | -8/Garrison | Triggered checkpoint 10165 | -8/Garrison | Triggered checkpoint 10198 | -8/Garrison | Garrison Relay disabled 10283 | -8/Garrison | Phase Generator disabled 10336 | -8/Garrison | Garrison Relay disabled 10388 | -8/Garrison | Garrison Relay disabled 10432 | -8/Garrison | Build established: Scavenger-Mutant 10447 | -8/Garrison | Triggered checkpoint 10457 | -8/Garrison | Triggered checkpoint 10485 | -8/Garrison | Destroyed 8 combat bots 10540 | -8/Garrison | Garrison Relay disabled 10572 | -8/Garrison | Discovered exit to Factory (range 13) 10657 | -8/Garrison | Triggered checkpoint 10693 | -8/Garrison | Found Hvy. Reflective Plating 10941 | -8/Garrison | Triggered checkpoint 11015 | -8/Garrison | Garrison Relay disabled 11070 | -8/Garrison | Discovered exit to Factory (range 12) 11266 | -8/Garrison | Triggered checkpoint 11360 | -8/Garrison | Discovered exit to Factory (range 11) 11361 | -8/Garrison | Triggered checkpoint 11458 | -8/Garrison | Garrison Relay disabled 11525 | -8/Garrison | Entered Factory 11525 | -7/Factory | Evolved 2 slots: Power x1, Propulsion x1 11527 | -7/Factory | Loaded intel: 6 fabricator locations 11940 | -7/Factory | Repaired Broken Adv. Myomer Leg 12079 | -7/Factory | Fabricated Plasma Cutter (x2) 12465 | -7/Factory | Discovered new exit (range 9) 12481 | -7/Factory | Identified exit to Factory 12727 | -7/Factory | Discovered exit to Factory (range 4) 13041 | -7/Factory | Garrison activated, responded to threat 13485 | -7/Factory | Identified exit to Lower Caves 13581 | -7/Factory | Entered Lower Caves 13582 | -7/Lower Caves | Identified exit to Lower Caves 13587 | -7/Lower Caves | Met a Warlord Commander 13588 | -7/Lower Caves | Learned location of Warlord (-5) 13589 | -7/Lower Caves | Warlord Commander delivered Encrypted Comm Array 13592 | -7/Lower Caves | Found Encrypted Comm Array 13799 | -7/Lower Caves | Attracted the attention of an 0b10 outpost 13837 | -7/Lower Caves | Destroyed 9 combat bots 14100 | -7/Lower Caves | Entered a destroyed Warlord outpost 14152 | -7/Lower Caves | Entered another Lower Caves area 14152 | -7/Lower Caves | Accompanied by 2 allies 14153 | -7/Lower Caves | Identified exit to Zion 14727 | -7/Lower Caves | Entered Zion 14776 | -7/Zion | Discovered new exit (range 16) 14799 | -7/Zion | System corruption cleaned by Quarantine Array 14899 | -7/Zion | Given the Hacking Drone Bay 15032 | -7/Zion | Received a hallucinogenic algorithm 15102 | -7/Zion | Acquired unknown access codes intercepted by a Zionite 15559 | -7/Zion | Given A8's code to call for help 15664 | -7/Zion | Met Imprinter 15939 | -7/Zion | Found Prototype Device 15939 | -7/Zion | Identified Hacking Drone Bay 15983 | -7/Zion | Found Relay Coupler [Programmer] 15987 | -7/Zion | Found Relay Coupler [Programmer] 15989 | -7/Zion | Found Relay Coupler [Programmer] 16112 | -7/Zion | Learned Factory repair station intel 16837 | -7/Zion | Opened final containment barrier to the Deep Caves 16858 | -7/Zion | Discovered new exit (range 3) 16858 | -7/Zion | Saw the warning signs outside the Deep Caves entrance 17033 | -7/Zion | Found GAL Module 17247 | -7/Zion | Entered Deep Caves 17249 | -7/Deep Caves | Met 5H-AD0 17721 | -7/Deep Caves | Z-Facility disabled 17824 | -7/Deep Caves | Attacked by Z-Imprinter 17877 | -7/Deep Caves | Thanked by 5H-AD0 17919 | -7/Deep Caves | Found Prototype Protection 17919 | -7/Deep Caves | Identified Zio. Weapon Casing 18015 | -7/Deep Caves | Found Prototype Protection 18015 | -7/Deep Caves | Identified Zio. Heavy Carapace 18500 | -7/Deep Caves | Discovered new exit (range 7) 19226 | -7/Deep Caves | Found Zio. Heavy Carapace 19416 | -7/Deep Caves | Found Zio. Heavy Carapace 19629 | -7/Deep Caves | Spotted AG-44481 19669 | -7/Deep Caves | Destroyed AG-44481 19724 | -7/Deep Caves | Spotted AG-42587 19731 | -7/Deep Caves | Core integrity fell below 50% 19759 | -7/Deep Caves | Destroyed AG-42587 19761 | -7/Deep Caves | Lost 3 parts (1n1u1w) 19774 | -7/Deep Caves | Found GOLEM Unit 19790 | -7/Deep Caves | Triggered Deep Caves wall 19790 | -7/Deep Caves | Spotted AS-85216 19790 | -7/Deep Caves | Spotted AS-54182 19796 | -7/Deep Caves | Exposed GOLEM chamber 19799 | -7/Deep Caves | Destroyed AS-85216 19809 | -7/Deep Caves | Destroyed AS-54182 20202 | -7/Deep Caves | Found Mobile Assembly Unit 20252 | -7/Deep Caves | Found Corrupted Potential Leg 20302 | -7/Deep Caves | Found GOLEM Unit 20310 | -7/Deep Caves | Found GOLEM Unit 20313 | -7/Deep Caves | Found GOLEM Unit 20560 | -7/Deep Caves | Build established: Golem 20655 | -7/Deep Caves | Entered Proximity Caves 20824 | -6/Proximity Caves | Spotter reported a threat 20927 | -6/Proximity Caves | Attracted the attention of an 0b10 outpost 21125 | -6/Proximity Caves | Attracted the attention of an 0b10 checkpoint 21701 | -6/Proximity Caves | Spotted B-75 Beast 21745 | -6/Proximity Caves | Lost 3 parts (1p2n) 22010 | -6/Proximity Caves | Destroyed B-75 Beast 22167 | -6/Proximity Caves | Discovered exit to Factory (range 10) 22231 | -6/Proximity Caves | System corruption reached 10% 22231 | -6/Proximity Caves | Entered Factory 22231 | -6/Factory | Evolved 2 slots: Utility x2 22232 | -6/Factory | Loaded intel: 6 repair station locations 22489 | -6/Factory | Identified exit to Garrison 22489 | -6/Factory | Entered Garrison 22489 | -6/Garrison | Accompanied by 2 allies 22527 | -6/Garrison | Triggered checkpoint 22603 | -6/Garrison | Garrison Relay disabled 22614 | -6/Garrison | Garrison Relay disabled 22862 | -6/Garrison | Spotted B-75 Beast 22911 | -6/Garrison | Destroyed B-75 Beast 23049 | -6/Garrison | Learned Factory security intel 23214 | -6/Garrison | Phase Generator disabled 23285 | -6/Garrison | Triggered checkpoint 23355 | -6/Garrison | Rewired Executioner 23358 | -6/Garrison | Rewired Executioner 23367 | -6/Garrison | Build established: Scavenger-Golem 23606 | -6/Garrison | Triggered checkpoint 23717 | -6/Garrison | Triggered checkpoint 23755 | -6/Garrison | Garrison Relay disabled 23788 | -6/Garrison | Garrison Relay disabled 23817 | -6/Garrison | Discovered new exit (range 8) 23835 | -6/Garrison | Spotted B-75 Beast 23918 | -6/Garrison | Triggered checkpoint 24047 | -6/Garrison | Discovered new exit (range 12) 24053 | -6/Garrison | Triggered checkpoint 24097 | -6/Garrison | Garrison Relay disabled 24263 | -6/Garrison | Triggered checkpoint 24276 | -6/Garrison | Garrison Relay disabled 24357 | -6/Garrison | Triggered checkpoint 24380 | -6/Garrison | Garrison Relay disabled 24411 | -6/Garrison | Discovered new exit (range 14) 24491 | -6/Garrison | Entered Factory 24491 | -6/Factory | Accompanied by 2 allies 24535 | -6/Factory | Identified exit to DSF 24535 | -6/Factory | Entered DSF 24535 | -6/DSF | Accompanied by 2 allies 24575 | -6/DSF | Additional patrols routed to DSF 24660 | -6/DSF | Discovered new exit (range 16) 24751 | -6/DSF | Build established: Golem 24812 | -6/DSF | Sterilization system engaged 24832 | -6/DSF | Ambient heat levels rising (+10) 24832 | -6/DSF | Found Prototype Device 24832 | -6/DSF | Identified Adv. Kinecellerator 24847 | -6/DSF | Ambient heat levels rising (+10) 24855 | -6/DSF | Found Prototype Processor 24862 | -6/DSF | Ambient heat levels rising (+10) 24877 | -6/DSF | Ambient heat levels rising (+10) 24892 | -6/DSF | Ambient heat levels rising (+10) 24907 | -6/DSF | Ambient heat levels rising (+10) 24922 | -6/DSF | Ambient heat levels rising (+10) 24937 | -6/DSF | Ambient heat levels rising (+10) 24938 | -6/DSF | Entered Factory 24938 | -5/Factory | Evolved 2 slots: Utility x1, Weapon x1 24939 | -5/Factory | Identified exit to Upper Caves 24939 | -5/Factory | Identified exit to Extension 25026 | -5/Factory | Identified Exp. Core Analyzer 25104 | -5/Factory | Build established: Scavenger-Golem 25316 | -5/Factory | Entered Upper Caves 26206 | -5/Upper Caves | Discovered new exit (range 14) 26216 | -5/Upper Caves | Spotted B-75 Beast 26232 | -5/Upper Caves | Entered another Upper Caves area 26799 | -5/Upper Caves | Spotted B-75 Beast 26840 | -5/Upper Caves | Destroyed B-75 Beast 27427 | -5/Upper Caves | Discovered new exit (range 4) 27430 | -5/Upper Caves | Attracted the attention of an 0b10 checkpoint 27463 | -5/Upper Caves | Entered Warlord 27939 | -5/Warlord | Found Prototype Device 27939 | -5/Warlord | Identified Exp. Phase Shifter 27953 | -5/Warlord | Found Prototype Processor 27953 | -5/Warlord | Identified Exp. Armor Integrity Analyzer 27957 | -5/Warlord | Found Prototype Device 27957 | -5/Warlord | Identified Exp. Focal Shield 27963 | -5/Warlord | Found Prototype Hackware 28106 | -5/Warlord | Met Warlord 28131 | -5/Warlord | Warlord's base attacked by MAIN.C 28481 | -5/Warlord | Warlord forces counterattacked 28481 | -5/Warlord | Lost 3 allies 28508 | -5/Warlord | Spotted Executioner 28555 | -5/Warlord | Found Prototype Processor 28555 | -5/Warlord | Identified Exp. Targeting Computer 28563 | -5/Warlord | Spotted Striker 28566 | -5/Warlord | Spotted Executioner 28567 | -5/Warlord | Allies destroyed Striker 28570 | -5/Warlord | Destroyed Executioner 28602 | -5/Warlord | Spotted Executioner 28641 | -5/Warlord | Lost 3 allies 28643 | -5/Warlord | Spotted Striker 28650 | -5/Warlord | Spotted Striker 28657 | -5/Warlord | Destroyed Striker 28660 | -5/Warlord | Destroyed Striker 28680 | -5/Warlord | Discovered new exit (range 12) 28701 | -5/Warlord | Lost 4 allies 28724 | -5/Warlord | Entered Proximity Caves 28724 | -4/Proximity Caves | Accompanied by 3 allies 29439 | -4/Proximity Caves | Acquired the password to a Derelict Tinkerer's latest research 29494 | -4/Proximity Caves | Caught by Unaware searching for contraband prototypes 29494 | -4/Proximity Caves | P-70 Sage assimilated allied Archangel 6a 29509 | -4/Proximity Caves | Caught by Unaware searching for contraband prototypes 29604 | -4/Proximity Caves | Learned Research stockpile data 29704 | -4/Proximity Caves | Spotted B-86 Titan 29745 | -4/Proximity Caves | Destroyed B-86 Titan 29769 | -4/Proximity Caves | Attracted the attention of an 0b10 checkpoint 29941 | -4/Proximity Caves | Learned Research security intel 29975 | -4/Proximity Caves | Learned Research emergency access door positions 30018 | -4/Proximity Caves | Discovered new exit (range 14) 30445 | -4/Proximity Caves | Entered Factory 30445 | -4/Factory | Evolved 2 slots: Propulsion x1, Utility x1 30511 | -4/Factory | Garrison activated, responded to threat 30555 | -4/Factory | Identified exit to Garrison 30555 | -4/Factory | Entered Garrison 30562 | -4/Garrison | Destroyed 7 combat bots 30597 | -4/Garrison | Triggered checkpoint 30624 | -4/Garrison | Garrison Relay disabled 30817 | -4/Garrison | Spotted B-86 Titan 30878 | -4/Garrison | Destroyed B-86 Titan 30900 | -4/Garrison | Triggered checkpoint 31017 | -4/Garrison | Triggered checkpoint 31047 | -4/Garrison | Garrison Relay disabled 31101 | -4/Garrison | Discovered new exit (range 15) 31246 | -4/Garrison | Destroyed 7 combat bots 31293 | -4/Garrison | Triggered checkpoint 31293 | -4/Garrison | Triggered checkpoint 31353 | -4/Garrison | Triggered checkpoint 31391 | -4/Garrison | Garrison Relay disabled 31459 | -4/Garrison | Installed Relay Interface Framework 31468 | -4/Garrison | Discovered new exit (range 12) 31733 | -4/Garrison | Discovered new exit (range 11) 31838 | -4/Garrison | Garrison Relay disabled 31847 | -4/Garrison | Triggered checkpoint 31890 | -4/Garrison | Expanded RIF knowledge: Zone Cloak 32251 | -4/Garrison | Entered Factory 32393 | -4/Factory | Spotted B-86 Titan 32501 | -4/Factory | First assault squad dispatched 32605 | -4/Factory | Spotted B-86 Titan 32755 | -4/Factory | Garrison activated, responded to threat 32822 | -4/Factory | Identified exit to Garrison 32884 | -4/Factory | Entered Garrison 32925 | -4/Garrison | Triggered checkpoint 32973 | -4/Garrison | Garrison Relay disabled 33126 | -4/Garrison | Spotted B-86 Titan 33161 | -4/Garrison | Destroyed B-86 Titan 33185 | -4/Garrison | Triggered checkpoint 33260 | -4/Garrison | Triggered checkpoint 33434 | -4/Garrison | Triggered checkpoint 33473 | -4/Garrison | Garrison Relay disabled 33526 | -4/Garrison | Discovered new exit (range 12) 33658 | -4/Garrison | Discovered new exit (range 8) 33702 | -4/Garrison | Expanded RIF knowledge: Zone Cloak 33752 | -4/Garrison | Triggered checkpoint 33790 | -4/Garrison | Garrison Relay disabled 33887 | -4/Garrison | Found embedded Infiltrators 33940 | -4/Garrison | Triggered checkpoint 33991 | -4/Garrison | Garrison Relay disabled 34038 | -4/Garrison | Discovered new exit (range 15) 34049 | -4/Garrison | Garrison Relay disabled 34108 | -4/Garrison | Entered Research 34108 | -3/Research | Accompanied by 2 allies 34108 | -3/Research | Evolved 2 slots: Utility x2 34135 | -3/Research | Identified Ghost Barrier 34572 | -3/Research | Discovered new exit (range 10) 34584 | -3/Research | Garrison activated, responded to threat 34599 | -3/Research | Build established: Bothacker-Golem 34635 | -3/Research | Identified exit to Garrison 34635 | -3/Research | Entered Garrison 34689 | -3/Garrison | Triggered checkpoint 34708 | -3/Garrison | Garrison Relay disabled 34799 | -3/Garrison | Spotted B-86 Titan 34870 | -3/Garrison | Destroyed B-86 Titan 35014 | -3/Garrison | H-XX Assembler disabled 35139 | -3/Garrison | Triggered checkpoint 35151 | -3/Garrison | Triggered checkpoint 35187 | -3/Garrison | Lost 4 allies 35219 | -3/Garrison | Destroyed 7 combat bots 35273 | -3/Garrison | Build established: Scavenger-Golem 35288 | -3/Garrison | Triggered checkpoint 35364 | -3/Garrison | Destroyed 7 combat bots 35473 | -3/Garrison | Garrison Relay disabled 35571 | -3/Garrison | Discovered new exit (range 9) 35781 | -3/Garrison | Triggered checkpoint 35852 | -3/Garrison | Garrison Relay disabled 35871 | -3/Garrison | Triggered checkpoint 35874 | -3/Garrison | Expanded RIF knowledge: Patrol Navigation 36066 | -3/Garrison | Spotted B-90 Cyclops 36078 | -3/Garrison | Allies destroyed B-90 Cyclops 36138 | -3/Garrison | Rewired B-90 Cyclops 36167 | -3/Garrison | Discovered new exit (range 13) 36277 | -3/Garrison | Triggered checkpoint 36335 | -3/Garrison | Garrison Relay disabled 36337 | -3/Garrison | Garrison Relay disabled 36356 | -3/Garrison | Garrison Relay disabled 36375 | -3/Garrison | Garrison Relay disabled 36388 | -3/Garrison | Lost 3 allies 36448 | -3/Garrison | Discovered new exit (range 11) 36469 | -3/Garrison | Triggered checkpoint 36508 | -3/Garrison | Discovered new exit (range 5) 36898 | -3/Garrison | Entered Research 36898 | -3/Research | Accompanied by 5 allies 37016 | -3/Research | Spotted B-86 Titan 37031 | -3/Research | Destroyed B-86 Titan 37146 | -3/Research | Spotted B-86 Titan 37170 | -3/Research | Allies destroyed B-86 Titan 37197 | -3/Research | Lost 4 parts (1u3w) 37201 | -3/Research | Lost 4 allies 37398 | -3/Research | First assault squad dispatched 37667 | -3/Research | System corruption reached 10% 37748 | -3/Research | Lost 7 parts (2p1n1u3w) 37774 | -3/Research | Identified exit to Garrison 37774 | -3/Research | Entered Garrison 38135 | -3/Garrison | Lost 3 parts (3u) 38238 | -3/Garrison | P-80 Master assimilated allied 49-WR6(b) 38302 | -3/Garrison | Lost 6 parts (2n2u2w) 38442 | -3/Garrison | Triggered checkpoint 38457 | -3/Garrison | Spotted B-86 Titan 38518 | -3/Garrison | Discovered new exit (range 10) 38527 | -3/Garrison | Entered Research 38527 | -2/Research | Warlord forces began assault on 0b10 38527 | -2/Research | Evolved 2 slots: Utility x2 38555 | -2/Research | Lost 9 parts (2p1n4u2w) 38613 | -2/Research | Met up with Warlord 38637 | -2/Research | Research machine network offline 38765 | -2/Research | Discovered new exit (range 12) 38787 | -2/Research | Found Prototype Launcher 38787 | -2/Research | Identified Enh. Gamma Bomb Array 38824 | -2/Research | Discovered new exit (range 5) 38878 | -2/Research | Found Fusion Bomb Launcher 38992 | -2/Research | Build established: Golem 39074 | -2/Research | Borebot progress halted 39080 | -2/Research | Spotted Striker 39083 | -2/Research | Spotted Striker 39106 | -2/Research | Destroyed Striker 39113 | -2/Research | Destroyed Striker 39169 | -2/Research | Discovered new exit (range 15) 39181 | -2/Research | Borebot progress halted 39425 | -2/Research | Build established: Scavenger-Golem 39428 | -2/Research | Borebot progress halted 39523 | -2/Research | Entered Access 39523 | -1/Access | Evolved 2 slots: Utility x2 39591 | -1/Access | Garrison activated, responded to threat 39718 | -1/Access | Ghost Barrier fried by hacking feedback 40145 | -1/Access | Identified exit to Command 40258 | -1/Access | Garrison activated, responded to threat 40374 | -1/Access | Destroyed 8 combat bots 40523 | -1/Access | First assault squad dispatched 40553 | -1/Access | Destroyed 13 combat bots 40564 | -1/Access | Spotted B-99 Colossus 40564 | -1/Access | Spotted B-99 Colossus 40573 | -1/Access | Core integrity fell below 50% 40579 | -1/Access | Core integrity fell below 20% 40581 | -1/Access | Destroyed by B-99 Colossus with Multirail Last Messages --------------- 40574_ Penetrated by Slug. 40574_ Adv. Heat Sink destroyed. 40574_ Slug penetrates Sealed Heavy Doors. 40575_ H-88 Terminator knocked back. 40575_ Knocked back. 40575_ Penetrated by Slug. 40576_ Acquired Enh. Quantum Rifle. 40577_ Slug penetrates Wall. 40577_ Penetrated by Slug. 40577_ Knocked back. 40577_ Imp. Hacking Suite destroyed. 40577_ Penetrated by Slug. 40578_ Slug penetrates Sealed Heavy Doors. 40578_ Penetrated by Slug. 40579_ Enh. Quantum Rifle destroyed. 40580_ Penetrated by Slug. 40581_ Slug penetrates Sealed Heavy Doors. 40581_ Penetrated by Slug. 40581_ Slug penetrates Sealed Heavy Doors. 40581_ Penetrated by Slug. Map ----- +----------------------------------------------------+ | ???????????????????????????????????????# | | ???????????????????????????????????????# # | | ??????????????????????????????????????## # | | ???????????????????????????????????????+ %[ | | ???????????????????????????????????????# * | | ?????????????????????????????????#?????# % | | ????????????????????????????????? ????# # | | ?????????????????????????????????? ????# * # | | ??????????????????????????????????? ?### ##+#### | | ??????????????????????????????????? ?# | | ???????????????????????????????????? # | | ???????????????????????????????????? # | | ?????????????????????????????????????/ #### # | | ?????????????????????????????????????# ## ##+### | | ?????????????????????????????????????# # | | ????????????????????????######???????# # | | ????????????????????????# #???????# # | | ????????????????????????# #???????# # ! | | ????????????????????????? #???????# # | | ?????????????????????????# #???????# + | | ?????????????????????????# ##??????# " "" | | ????????????????????????## ;#?????##% # """ | | ?????????????????????????" ! ##????##" ######### | | ?????????????????????>???"!h[|######; #??????? | | ????????????????????????""%!!sg ggg #??????? | | ????????????????????????"@ ]!s gH* #??????? | | ????????????????????????"" h "s %s #??????? | | ????????????????????????#" ;####### #??????? | | ????????????????????????#" ##?????#######??????? | | ????????????????????????## #???????????????????? | | ?????????????????????????# #???????????????????? | | ?????????????????????????# #???????????????????? | | ????????????????????????? #???????????????????? | | ????????????????????????? #???????????????????? | | ????????????????????????# #???????????????????? | | ????????????????????????######???????????????????? | | ?????????????????????????????????????????????????? | | ?????????????????????????????????????????????????? | | ?????????????????????????????????????????????????? | | ?????????????????????????????????????????????????? | | ?????????????????????????????????????????????????? | | ?????????????????????????????????????????????????? | | ?????????????????????????????????????????????????? | | ?????????????????????????????????????????????????? | | ?????????????????????????????????????????????????? | | ?????????????????????????????????????????????????? | | ?????????????????????????????????????????????????? | | ?????????????????????????????????????????????????? | | ?????????????????????????????????????????????????? | | ?????????????????????????????????????????????????? | +----------------------------------------------------+ Best States ------------- Heat Dissipation 135 Energy Generation 49 Energy Capacity 2000 Matter Stores 378 Matter Capacity 450 Sight Range 23 Robot Scan Range 18 Terrain Scan Density 10 Jamming Range 16 Additional Mass Support 20 Corruption Block 20 Armor Coverage 1200 Resistance: KI 30 Resistance: TH 15 Resistance: EX 15 Resistance: EM 15 Resistance: I 15 Resistance: S 15 Resistance: P 15 Weapon Shielding 100 Phase Shifting 20 Evasion (%) 70 Targeting Accuracy 28 Core Analysis 8 Recoil Reduction 3 Energy Filtering 50 Particle Charging 20 Offensive Hacking 24 Relay Coupler Types 1 Relay Coupler Value 90 Authchip Count 1 Trap Extractor Capacity 4 Item Schematics ----------------- Hcp. Storage Unit | -10/Materials | Hacked Beam Rifle | -9/Materials | Extracted Structural Scanner | -9/Materials | Extracted Huge Storage Unit | -9/Materials | Extracted Plasma Cutter | -7/Factory | Hacked Weapon Mount | -7/Factory | Scanalyzed Imp. Proton Missile Launcher | -7/Factory | Scanalyzed Thermic Laser | -7/Zion | Archive Core Analyzer | -7/Zion | Archive Dynamic Insulation System | -7/Zion | Archive Imp. Target Analyzer | -7/Zion | Archive Imp. Actuator Array | -7/Zion | Archive Gravmag System | -7/Zion | Archive Arm. Medium Treads | -7/Zion | Archive Hvy. Phase Cannon | -7/Zion | Archive Hvy. Flak Cannon | -7/Zion | Archive System Guard | -7/Zion | Archive Adv. ECM Suite | -7/Zion | Archive Imp. Shield Generator | -7/Zion | Archive EM Disruption Field | -7/Zion | Archive Flamer | -7/Zion | Free Beamcaster | -7/Zion | Free Barrage Gun | -7/Zion | Free Slug Cannon | -7/Zion | Free Enh. Flamer | -7/Zion | Free Robot Schematics ------------------ B-48 Gladiator | -7/Zion | Archive T-07 Excavator | -7/Zion | Archive Y-72 Warden | -7/Zion | Archive Fabricated ------------ Plasma Cutter | x2 | -7/Factory Repaired ---------- Sml. Laser | 10% | -10/Materials Adv. Recalibrator | 28% | -8/Materials Adv. Myomer Leg | 35% | -7/Factory | Broken Alien Tech Used ----------------- None Achievements -------------- None Challenges ------------ None Game ------ Seed DamperCarbideWings Manual? 0 Play Time 06:10:14 Cumulative 559.5 hours Start 2025.07.14 @ 13:42:48 End 2025.07.17 @ 14:09:34 Sessions 7 Manual Loads 0 Difficulty Rogue Special Mode None Game No. 321 Rogue 296 Adventurer 7 Explorer 18 Win Type - Total 44 Types 27/0/8/2/0/1/1/3/0/2 Lore% 94 Gallery% 90 Achievement% 81 Wizard Run 0 Options --------- Layout 0 ASCII 0 Keyboard 0 Movement Numpad Keybinds 0 Fullscreen 1 Font 12/Smallcaps Map View 83x54 Zoom Use 0% Tactical HUD 1 Map Filters NONE Filters NONE Steam 1 RUN: ca97a09b-3d6b-45c4-8ec6-8fe806f0eb51